{"text_format":"1","workbook":"xlsx","n_sheets":4,"sheets":["PRADŽIA","NAUDOJIMOSI INSTRUKCIJA","SKAIČIUOKLĖ","ATNAUJINIMAS"],"not_rendered":{"charts":1,"images":17,"macros":1,"external_links":1,"defined_names":1,"comments":0,"pivot_tables":0},"unopened":[],"bounds":{"document_bytes":16777216,"sheet_cells":100000,"rows_first":2000,"rows_last":500,"rows_between":2000,"halvings":0,"cell_chars":16384,"cell_head_chars":4096},"cells_cut":0,"cells_raw":0,"read":"whole","date_system":"1900"}

{"sheet":"PRADŽIA","index":0,"n_rows":0,"n_cols":0,"rows_kept":0,"cut":false,"hidden":false,"merged":[[0,17,4,21]]}

{"sheet":"NAUDOJIMOSI INSTRUKCIJA","index":1,"n_rows":0,"n_cols":0,"rows_kept":0,"cut":false,"hidden":false,"merged":[]}

{"sheet":"SKAIČIUOKLĖ","index":2,"n_rows":223,"n_cols":50,"rows_kept":223,"cut":false,"hidden":false,"merged":[[24,7,26,7],[14,5,14,6],[2,5,2,15],[10,5,10,6],[12,5,12,6],[13,5,13,6],[8,5,8,6],[11,5,11,6],[26,5,26,6],[15,5,15,6],[18,5,18,6],[20,5,20,6],[22,5,22,6],[24,5,24,6],[25,5,25,6],[26,10,26,15]]}
[null,null,null,null,null,null,null,null,null,null,null,null,null,null,null,null,null,null,null,null,2023,"Duomenys \"helper\" stulpeliams",null,null,"Helper stulpeliai",null,null,null,null,"Degalų rušies dropdown'ui. Pagal H3 stulpelį suranda kokios kuro rūšis aktualios TP klasei",null,null,null,null,null,null,"Duomenys \"helper\" stulpeliams",null,null,"Helper stulpeliai",null,null,null,null,"Degalų rušies dropdown'ui. Pagal H3 stulpelį suranda kokios kuro rūšis aktualios TP klasei"]
[null,null,null,null,null,null,null,null,null,null,null,null,null,null,null,null,null,null,null,null,"Dropdown'o pasirinkimai","Priemonės tipas","Kuro tipas","kt CO2 eq. per metus",null,"H1","H2","H3",null,"Dropdown 2",null,null,"H2 for old vehicle CO2 eq. value","H3 for CO2 eq. value",null,null,"Priemonės tipas","Kuro tipas","CO2 g/km",null,"H1","H2","H3",null,"Dropdown 2",null,null,"H2 for old vehicle CO2 eq. value","H3 for CO2 eq. value"]
[null,null,null,null,null,"TRANSPORTO PRIEMONIŲ RIDOS REGULIAVIMO POVEIKIO VERTINIMO SKAIČIUOKLĖ",null,null,null,null,null,null,null,null,null,null,null,null,null,null,"M1",null,"M1","Benzinas",1.6000000000000001E-3,null,1,{"$f":"IF(W3=I$9,AA3,\"\")","v":1},{"$f":"IFERROR(SMALL(AB$3:AB$27,AA3),\"\")","v":1},null,{"$f":"IFERROR(INDEX(X$3:X$27,AC3,COLUMNS(AE3:AE3)),\"\")","v":"Benzinas"},null,null,{"$f":"IF(AND(I$9=W3,X3=I$12),AA3,\"\")","v":""},{"$f":"IFERROR(SMALL(AH$3:AH$27,AA3),\"\")","v":2},null,null,"M1","Benzinas",9320,null,1,{"$f":"IF(AL3=I$9,AP3,\"\")","v":1},{"$f":"IFERROR(SMALL(AQ$3:AQ$21,AP3),\"\")","v":1},null,{"$f":"IFERROR(INDEX(AM$3:AM$21,AR3,COLUMNS(AT3:AT3)),\"\")","v":"Benzinas"},null,null,{"$f":"IF(AND(I$9=AL3,AM3=I$12),AP3,\"\")","v":""},{"$f":"IFERROR(SMALL(AW$3:AW$21,AP3),\"\")","v":2}]
[null,null,null,null,null,null,null,null,null,null,null,null,null,null,null,null,null,null,null,null,"M2",null,"M1","Suskystintos naftos dujos",2.5999999999999999E-3,null,2,2,2,null,{"$f":"IFERROR(INDEX(X$3:X$27,AC4,COLUMNS(AE4:AE4)),\"\")","v":"Suskystintos naftos dujos"},null,null,2,"",null,null,"M1","Suskystintos naftos dujos",12310,null,2,2,2,null,{"$f":"IFERROR(INDEX(AM$3:AM$21,AR4,COLUMNS(AT4:AT4)),\"\")","v":"Suskystintos naftos dujos"},null,null,2,""]
[null,null,null,null,null,null,null,null,null,null,null,null,null,null,null,null,null,null,null,null,"M3",null,"M1","Elektra",2.8999999999999998E-3,null,3,3,3,null,{"$f":"IFERROR(INDEX(X$3:X$27,AC5,COLUMNS(AE5:AE5)),\"\")","v":"Elektra"},null,null,"","",null,null,"M1","Elektra",27715,null,3,3,3,null,{"$f":"IFERROR(INDEX(AM$3:AM$21,AR5,COLUMNS(AT5:AT5)),\"\")","v":"Elektra"},null,null,"",""]
[null,null,null,null,null,null,null,null,null,null,null,null,null,null,null,null,null,null,null,null,"N1",null,"M1","Dyzelinas",2E-3,null,4,4,4,null,{"$f":"IFERROR(INDEX(X$3:X$27,AC6,COLUMNS(AE6:AE6)),\"\")","v":"Dyzelinas"},null,null,"","",null,null,"M1","Dyzelinas",14415,null,4,4,4,null,{"$f":"IFERROR(INDEX(AM$3:AM$21,AR6,COLUMNS(AT6:AT6)),\"\")","v":"Dyzelinas"},null,null,"",""]
[null,null,null,null,null,"Metai",null,"Numatyta reikšmė",2023,2024,2025,2026,2027,2028,2029,2030,null,null,null,null,"N2",null,null,null,null,null,5,"",6,null,{"$f":"IFERROR(INDEX(X$3:X$27,AC7,COLUMNS(AE7:AE7)),\"\")","v":"-"},null,null,"","",null,null,"M1","-",null,null,5,5,5,null,"-",null,null,"",""]
[null,null,null,null,null,null,null,null,null,null,null,null,null,null,null,null,null,null,null,null,"N3",null,"M1","-",null,null,6,6,"",null,{"$f":"IFERROR(INDEX(X$3:X$27,AC8,COLUMNS(AE8:AE8)),\"\")","v":""},null,null,"","",null,null,"M2","Dyzelinas",31130,null,6,"","",null,{"$f":"IFERROR(INDEX(AM$3:AM$21,AR8,COLUMNS(AT8:AT8)),\"\")","v":""},null,null,"",""]
[null,null,null,null,null,"Bendra MTP klasė",null,"Pasirinkite iš sąrašo","M1","M1","M1","M1","M1","M1","M1","M1",null,null,null,null,null,null,"M2","Dyzelinas",1.5599999999999999E-2,null,7,"","",null,{"$f":"IFERROR(INDEX(X$3:X$27,AC9,COLUMNS(AE9:AE9)),\"\")","v":""},null,null,"","",null,null,"M2","-",null,null,7,"","",null,{"$f":"IFERROR(INDEX(AM$3:AM$21,AR9,COLUMNS(AT9:AT9)),\"\")","v":""},null,null,"",""]
[null,null,null,null,null,null,null,null,"M1",null,null,null,null,null,null,null,null,null,null,null,null,null,null,null,null,null,null,null,null,null,null,null,null,null,null,null,null,"M3","Dyzelinas",45366,null,8,{"$f":"IF(AL10=I$9,AP10,\"\")","v":""},null,null,null,null,null,""]
[null,null,null,null,null,null,null,null,null,null,null,null,null,null,null,null,null,null,null,null,null,null,null,null,null,null,9,{"$f":"IF(W11=I$9,AA11,\"\")","v":""},{"$f":"IFERROR(SMALL(AB$3:AB$27,AA11),\"\")","v":""},null,{"$f":"IFERROR(INDEX(X$3:X$27,AC11,COLUMNS(AE11:AE11)),\"\")","v":""},null,null,{"$f":"IF(AND(I$9=W11,X11=I$12),AA11,\"\")","v":""},{"$f":"IFERROR(SMALL(AH$3:AH$27,AA11),\"\")","v":""},null,null,"M3","-",null,null,9,"",{"$f":"IFERROR(SMALL(AQ$3:AQ$21,AP11),\"\")","v":""},null,{"$f":"IFERROR(INDEX(AM$3:AM$21,AR11,COLUMNS(AT11:AT11)),\"\")","v":""},null,null,{"$f":"IF(AND(I$9=AL11,AM11=I$12),AP11,\"\")","v":""},{"$f":"IFERROR(SMALL(AW$3:AW$21,AP11),\"\")","v":""}]
[null,null,null,null,null,"Bendras MTP degalų rūšis",null,"Pasirinkite iš sąrašo","Suskystintos naftos dujos","Suskystintos naftos dujos","Suskystintos naftos dujos","Suskystintos naftos dujos","Suskystintos naftos dujos","Suskystintos naftos dujos","Suskystintos naftos dujos","Suskystintos naftos dujos",null,null,null,null,null,null,"M3","Dyzelinas",8.8499999999999995E-2,null,10,"","",null,{"$f":"IFERROR(INDEX(X$3:X$27,AC12,COLUMNS(AE12:AE12)),\"\")","v":""},null,null,"","",null,null,"N1","Benzinas",12919,null,10,"","",null,{"$f":"IFERROR(INDEX(AM$3:AM$21,AR12,COLUMNS(AT12:AT12)),\"\")","v":""},null,null,"",""]
[null,null,null,null,null,"Vienos MTP išmetamas  bazinis ŠESD kiekis  ( kt CO2 ekv.)",null,"Numatyta reikšmė",{"$f":"IFERROR(INDEX(Y$3:Y$27,AI3,COLUMNS(I13:I13)),\"\")","v":2.5999999999999999E-3},{"$f":"IFERROR(INDEX(Y$31:Y$54,AI31,COLUMNS(J13:J13)),\"\")","v":2.5999999999999999E-3},{"$f":"IFERROR(INDEX(Y$59:Y$83,AI59,COLUMNS(K13:K13)),\"\")","v":2.7000000000000001E-3},{"$f":"IFERROR(INDEX(Y$87:Y$111,AI87,COLUMNS(L13:L13)),\"\")","v":2.7000000000000001E-3},{"$f":"IFERROR(INDEX(Y$115:Y$139,AI115,COLUMNS(M13:M13)),\"\")","v":2.7000000000000001E-3},{"$f":"IFERROR(INDEX(Y$143:Y$167,AI143,COLUMNS(N13:N13)),\"\")","v":2.7000000000000001E-3},{"$f":"IFERROR(INDEX(Y$171:Y$195,AI171,COLUMNS(O13:O13)),\"\")","v":2.7000000000000001E-3},{"$f":"IFERROR(INDEX(Y$199:Y$224,AI199,COLUMNS(P13:P13)),\"\")","v":2.8E-3},null,null,null,null,null,null,null,null,null,null,null,"","",null,{"$f":"IFERROR(INDEX(X$3:X$27,AC13,COLUMNS(AE13:AE13)),\"\")","v":""},null,null,"","",null,null,"N1","Suskystintos naftos dujos",12919,null,11,"","",null,{"$f":"IFERROR(INDEX(AM$3:AM$21,AR13,COLUMNS(AT13:AT13)),\"\")","v":""},null,null,"",""]
[null,null,null,null,null,"*Vienos MTP bazinė rida (km)  ",null,"Numatyta reikšmė",{"$f":"IFERROR(INDEX(AN$3:AN$21,AX3,COLUMNS(I13:I13)),\"\")","v":12310},{"$f":"IFERROR(INDEX(AN$31:AN$49,AX31,COLUMNS(J13:J13)),\"\")","v":12310},{"$f":"IFERROR(INDEX(AN$59:AN$77,AX59,COLUMNS(K13:K13)),\"\")","v":12310},{"$f":"IFERROR(INDEX(AN$87:AN$111,AX87,COLUMNS(L13:L13)),\"\")","v":12310},{"$f":"IFERROR(INDEX(AN$115:AN$133,AX115,COLUMNS(M13:M13)),\"\")","v":12310},{"$f":"IFERROR(INDEX($AN$143:$AN$161,$AX$143,COLUMNS(N13:N13)),\"\")","v":12310},{"$f":"IFERROR(INDEX(AN$171:AN$189,AX171,COLUMNS(O13:O13)),\"\")","v":12310},{"$f":"IFERROR(INDEX(AN$199:AN$217,AX199,COLUMNS(P13:P13)),\"\")","v":12310},null,null,null,null,null,null,null,null,null,null,12,"","",null,{"$f":"IFERROR(INDEX(X$3:X$27,AC14,COLUMNS(AE14:AE14)),\"\")","v":""},null,null,"","",null,null,"N1","Dyzelinas",20787,null,12,"","",null,{"$f":"IFERROR(INDEX(AM$3:AM$21,AR14,COLUMNS(AT14:AT14)),\"\")","v":""},null,null,"",""]
[null,null,null,null,null,"Vienos MTP projektinė  rida (km) ",null,"Įveskite",10000,10000,10000,10000,10000,10000,10000,10000,null,null,null,null,null,null,"N1","Benzinas",3.5000000000000001E-3,null,13,"","",null,{"$f":"IFERROR(INDEX(X$3:X$27,AC15,COLUMNS(AE15:AE15)),\"\")","v":""},null,null,"","",null,null,"N1","-",null,null,13,"","",null,{"$f":"IFERROR(INDEX(AM$3:AM$21,AR15,COLUMNS(AT15:AT15)),\"\")","v":""},null,null,"",""]
[null,null,null,null,null,"Vienos MTP bazinės ridos pokytis (%) ",null,null,{"$f":"IFERROR(1-(I15/I14),\"\")","v":0.18765231519090175},0.18765231519090175,0.18765231519090175,0.18765231519090175,0.18765231519090175,0.18765231519090175,0.18765231519090175,0.18765231519090175,null,null,null,null,null,null,"N1","Suskystintos naftos dujos",4.5999999999999999E-3,null,14,"","",null,{"$f":"IFERROR(INDEX(X$3:X$27,AC16,COLUMNS(AE16:AE16)),\"\")","v":""},null,null,"","",null,null,"N2","Benzinas",4281,null,14,"","",null,{"$f":"IFERROR(INDEX(AM$3:AM$21,AR16,COLUMNS(AT16:AT16)),\"\")","v":""},null,null,"",""]
[null,null,null,null,null,null,null,null,{"$f":"IFERROR(1-(I16/I15),\"\")","v":0.99998123476848089},null,null,null,null,null,null,null,null,null,null,null,null,null,"N1","Dyzelinas",3.8E-3,null,15,"","",null,{"$f":"IFERROR(INDEX(X$3:X$27,AC17,COLUMNS(AE17:AE17)),\"\")","v":""},null,null,"","",null,null,"N2","Suskystintos naftos dujos",17245,null,15,"","",null,{"$f":"IFERROR(INDEX(AM$3:AM$21,AR17,COLUMNS(AT17:AT17)),\"\")","v":""},null,null,"",""]
[null,null,null,null,null,null,null,null,{"$f":"IFERROR(1-(I17/I16),\"\")","v":-4.3289043290043274},null,null,null,null,null,null,null,null,null,null,null,null,null,null,null,null,null,null,"","",null,{"$f":"IFERROR(INDEX(X$3:X$27,AC18,COLUMNS(AE18:AE18)),\"\")","v":""},null,null,"","",null,null,"N2","Dyzelinas",23713,null,16,"","",null,{"$f":"IFERROR(INDEX(AM$3:AM$21,AR18,COLUMNS(AT18:AT18)),\"\")","v":""},null,null,"",""]
[null,null,null,null,null,"Vienos MTP bazinės ridos pokytis (%) ",null,"**Įveskite (pasirinktinai)",{"$f":"I16","v":0.18765231519090175},{"$f":"J16","v":0.18765231519090175},0.18765231519090175,0.18765231519090175,0.18765231519090175,0.18765231519090175,0.18765231519090175,0.18765231519090175,null,null,null,null,null,null,null,null,null,null,17,"","",null,{"$f":"IFERROR(INDEX(X$3:X$27,AC19,COLUMNS(AE19:AE19)),\"\")","v":""},null,null,"","",null,null,"N2","-",null,null,17,"","",null,{"$f":"IFERROR(INDEX(AM$3:AM$21,AR19,COLUMNS(AT19:AT19)),\"\")","v":""},null,null,"",""]
[null,null,null,null,null,null,null,null,null,null,null,null,null,null,null,null,null,null,null,null,null,null,"N2","Benzinas",5.1000000000000004E-3,null,18,"","",null,{"$f":"IFERROR(INDEX(X$3:X$27,AC20,COLUMNS(AE20:AE20)),\"\")","v":""},null,null,"","",null,null,"N3","Dyzelinas",56275,null,18,"","",null,{"$f":"IFERROR(INDEX(AM$3:AM$21,AR20,COLUMNS(AT20:AT20)),\"\")","v":""},null,null,"",""]
[null,null,null,null,null,"Eksploatacijos trukmė (metai) vienos MTP",null,"Įvesti",null,null,null,null,null,null,null,null,null,null,null,null,null,null,"N2","Suskystintos naftos dujos",7.9000000000000008E-3,null,19,"","",null,{"$f":"IFERROR(INDEX(X$3:X$27,AC21,COLUMNS(AE21:AE21)),\"\")","v":""},null,null,"","",null,null,"N3","-",null,null,19,"","",null,{"$f":"IFERROR(INDEX(AM$3:AM$21,AR21,COLUMNS(AT21:AT21)),\"\")","v":""},null,null,"",""]
[null,null,null,null,null,null,null,null,null,null,null,null,null,null,null,null,null,null,null,null,null,null,"N2","Dyzelinas",9.7999999999999997E-3,null,20,"","",null,null,null,null,"",""]
[null,null,null,null,null,"Bendras MTP  kiekis (vnt.)",null,"Įveskite",400,400,400,400,400,400,400,400,null,null,null,null,null,null,null,null,null,null,null,"","",null,null,null,null,"",""]
[]
[null,null,null,null,null,"ŠESD kiekio pokytis (kt CO2 ekv.)",null,"Rezultatai",{"$f":"IFERROR(I19*(I13)*I23,0)","v":0.1951584077985378},0.1951584077985378,0.2026645004061739,0.2026645004061739,0.2026645004061739,0.2026645004061739,0.2026645004061739,0.21017059301380994,null,null,null,null,null,null,"N3","Dyzelinas",2.2599999999999999E-2,null,23,{"$f":"IF(W25=I$9,AA25,\"\")","v":""},{"$f":"IFERROR(SMALL(AB$3:AB$27,AA25),\"\")","v":""},null,null,null,null,{"$f":"IF(AND(I$9=W25,X25=I$12),AA25,\"\")","v":""},{"$f":"IFERROR(SMALL(AH$3:AH$27,AA25),\"\")","v":""}]
[null,null,null,null,null,"Kaupiamasis ŠESD kiekio pokytis  (kt CO2 ekv.) ",null,null,{"$f":"I25","v":0.1951584077985378},{"$f":"I26+J25","v":0.39031681559707559},{"$f":"K25","v":0.2026645004061739},{"$f":"K26+L25","v":0.40532900081234779},{"$f":"L26+M25","v":0.60799350121852169},0.81065800162469559,1.0133225020308694,{"$f":"O26+P25","v":1.2234930950446794}]
[null,null,null,null,null,"Suminis ŠESD kiekio pokytis (kt CO2 ekv.)",null,null,null,null,{"$f":"SUM(K25:P25)","v":1.2234930950446794},null,null,null,null,null,null,null,null,null,null,null,null,null,null,null,null,{"$f":"IF(W27=I$9,AA27,\"\")","v":""},{"$f":"IFERROR(SMALL(AB$3:AB$27,AA27),\"\")","v":""},null,null,null,null,{"$f":"IF(AND(I$9=W27,X27=I$12),AA27,\"\")","v":""},{"$f":"IFERROR(SMALL(AH$3:AH$27,AA27),\"\")","v":""}]
[]
[null,null,null,null,null,null,null,null,null,null,null,null,null,null,null,null,null,null,null,null,2024,"Duomenys \"helper\" stulpeliams",null,null,"Helper stulpeliai",null,null,null,null,"Degalų rušies dropdown'ui. Pagal H3 stulpelį suranda kokios kuro rūšis aktualios TP klasei",null,null,null,null,null,null,"Duomenys \"helper\" stulpeliams",null,null,"Helper stulpeliai",null,null,null,null,"Degalų rušies dropdown'ui. Pagal H3 stulpelį suranda kokios kuro rūšis aktualios TP klasei"]
[null,null,null,null,null,null,null,null,null,null,null,null,null,null,null,null,null,null,null,null,null,"Priemonės tipas","Kuro tipas","kt CO2 eq. per metus",null,"H1","H2","H3",null,"Dropdown 2",null,null,"H2 for old vehicle CO2 eq. value","H3 for CO2 eq. value",null,null,"Priemonės tipas","Kuro tipas","CO2 g/km",null,"H1","H2","H3",null,"Dropdown 2",null,null,"H2 for old vehicle CO2 eq. value","H3 for CO2 eq. value"]
[null,null,null,null,null,null,null,null,null,null,null,null,null,null,null,null,null,null,null,null,null,null,"M1","Benzinas",1.6000000000000001E-3,null,1,{"$f":"IF(W31=J$9,AA31,\"\")","v":1},{"$f":"IFERROR(SMALL(AB$31:AB$55,AA31),\"\")","v":1},null,{"$f":"IFERROR(INDEX(X$31:X$55,AC31,COLUMNS(AE31:AE31)),\"\")","v":"Benzinas"},null,null,{"$f":"IF(AND(J$9=W31,X31=J$12),AA31,\"\")","v":""},{"$f":"IFERROR(SMALL(AH$31:AH$55,AA31),\"\")","v":2},null,null,"M1","Benzinas",9320,null,1,{"$f":"IF(AL31=J$9,AP31,\"\")","v":1},{"$f":"IFERROR(SMALL(AQ$31:AQ$49,AP31),\"\")","v":1},null,{"$f":"IFERROR(INDEX(AM$31:AM$49,AR31,COLUMNS(AT31:AT31)),\"\")","v":"Benzinas"},null,null,{"$f":"IF(AND(J$9=AL31,AM31=J$12),AP31,\"\")","v":""},{"$f":"IFERROR(SMALL(AW$31:AW$49,AP31),\"\")","v":2}]
[null,null,null,null,null,null,null,null,null,null,null,null,null,null,null,null,null,null,null,null,null,null,"M1","Suskystintos naftos dujos",2.5999999999999999E-3,null,2,2,2,null,{"$f":"IFERROR(INDEX(X$31:X$55,AC32,COLUMNS(AE32:AE32)),\"\")","v":"Suskystintos naftos dujos"},null,null,2,"",null,null,"M1","Suskystintos naftos dujos",12310,null,2,2,2,null,{"$f":"IFERROR(INDEX(AM$31:AM$49,AR32,COLUMNS(AT32:AT32)),\"\")","v":"Suskystintos naftos dujos"},null,null,2,""]
[null,null,null,null,null,null,null,null,null,null,null,null,null,null,null,null,null,null,null,null,null,null,"M1","Elektra",2.8999999999999998E-3,null,3,3,3,null,{"$f":"IFERROR(INDEX(X$31:X$55,AC33,COLUMNS(AE33:AE33)),\"\")","v":"Elektra"},null,null,"","",null,null,"M1","Elektra",27715,null,3,3,3,null,{"$f":"IFERROR(INDEX(AM$31:AM$49,AR33,COLUMNS(AT33:AT33)),\"\")","v":"Elektra"},null,null,"",""]
[null,null,null,null,null,null,null,null,null,null,null,null,null,null,null,null,null,null,null,null,null,null,"M1","Dyzelinas",1.9E-3,null,4,4,4,null,{"$f":"IFERROR(INDEX(X$31:X$55,AC34,COLUMNS(AE34:AE34)),\"\")","v":"Dyzelinas"},null,null,"","",null,null,"M1","Dyzelinas",14415,null,4,4,4,null,{"$f":"IFERROR(INDEX(AM$31:AM$49,AR34,COLUMNS(AT34:AT34)),\"\")","v":"Dyzelinas"},null,null,"",""]
[null,null,null,null,null,null,null,null,null,null,null,null,null,null,null,null,null,null,null,null,null,null,null,null,null,null,null,"","",null,{"$f":"IFERROR(INDEX(X$31:X$55,AC35,COLUMNS(AE35:AE35)),\"\")","v":""},null,null,"","",null,null,"M1","-",null,null,5,5,5,null,{"$f":"IFERROR(INDEX(AM$31:AM$49,AR35,COLUMNS(AT35:AT35)),\"\")","v":"-"},null,null,"",""]
[null,null,null,null,null,null,null,null,null,null,null,null,null,null,null,null,null,null,null,null,null,null,"M1","-",null,null,6,6,"",null,{"$f":"IFERROR(INDEX(X$31:X$55,AC36,COLUMNS(AE36:AE36)),\"\")","v":""},null,null,"","",null,null,"M2","Dyzelinas",31130,null,6,"","",null,{"$f":"IFERROR(INDEX(AM$31:AM$49,AR36,COLUMNS(AT36:AT36)),\"\")","v":""},null,null,"",""]
[null,null,null,null,null,null,null,null,null,null,null,null,null,null,null,null,null,null,null,null,null,null,"M2","Dyzelinas",1.5599999999999999E-2,null,7,"","",null,{"$f":"IFERROR(INDEX(X$31:X$55,AC37,COLUMNS(AE37:AE37)),\"\")","v":""},null,null,"","",null,null,"M2","-",null,null,7,"","",null,{"$f":"IFERROR(INDEX(AM$31:AM$49,AR37,COLUMNS(AT37:AT37)),\"\")","v":""},null,null,"",""]
[null,null,null,null,null,null,null,null,null,null,null,null,null,null,null,null,null,null,null,null,null,null,null,null,null,null,null,"","",null,{"$f":"IFERROR(INDEX(X$31:X$55,AC38,COLUMNS(AE38:AE38)),\"\")","v":""},null,null,"","",null,null,"M3","Dyzelinas",45366,null,8,"","",null,{"$f":"IFERROR(INDEX(AM$31:AM$49,AR38,COLUMNS(AT38:AT38)),\"\")","v":""},null,null,{"$f":"IF(AND(J$9=AL38,AM38=J$12),AP38,\"\")","v":""},""]
[null,null,null,null,null,null,null,null,null,null,null,null,null,null,null,null,null,null,null,null,null,null,null,null,null,null,9,"","",null,{"$f":"IFERROR(INDEX(X$31:X$55,AC39,COLUMNS(AE39:AE39)),\"\")","v":""},null,null,"","",null,null,"M3","-",null,null,9,"","",null,{"$f":"IFERROR(INDEX(AM$31:AM$49,AR39,COLUMNS(AT39:AT39)),\"\")","v":""},null,null,"",""]
[null,null,null,null,null,null,null,null,null,null,null,null,null,null,null,null,null,null,null,null,null,null,"M3","Dyzelinas",8.8499999999999995E-2,null,10,"","",null,{"$f":"IFERROR(INDEX(X$31:X$55,AC40,COLUMNS(AE40:AE40)),\"\")","v":""},null,null,"","",null,null,"N1","Benzinas",12919,null,10,"","",null,{"$f":"IFERROR(INDEX(AM$31:AM$49,AR40,COLUMNS(AT40:AT40)),\"\")","v":""},null,null,"",""]
[null,null,null,null,null,null,null,null,null,null,null,null,null,null,null,null,null,null,null,null,null,null,null,null,null,null,null,"","",null,{"$f":"IFERROR(INDEX(X$31:X$55,AC41,COLUMNS(AE41:AE41)),\"\")","v":""},null,null,"","",null,null,"N1","Suskystintos naftos dujos",12919,null,11,"","",null,{"$f":"IFERROR(INDEX(AM$31:AM$49,AR41,COLUMNS(AT41:AT41)),\"\")","v":""},null,null,"",""]
[null,null,null,null,null,null,null,null,null,null,null,null,null,null,null,null,null,null,null,null,null,null,null,null,null,null,12,"","",null,{"$f":"IFERROR(INDEX(X$31:X$55,AC42,COLUMNS(AE42:AE42)),\"\")","v":""},null,null,"","",null,null,"N1","Dyzelinas",20787,null,12,"","",null,{"$f":"IFERROR(INDEX(AM$31:AM$49,AR42,COLUMNS(AT42:AT42)),\"\")","v":""},null,null,"",""]
[null,null,null,null,null,null,null,null,null,null,null,null,null,null,null,null,null,null,null,null,null,null,"N1","Benzinas",3.5000000000000001E-3,null,13,"","",null,{"$f":"IFERROR(INDEX(X$31:X$55,AC43,COLUMNS(AE43:AE43)),\"\")","v":""},null,null,"","",null,null,"N1","-",null,null,13,"","",null,{"$f":"IFERROR(INDEX(AM$31:AM$49,AR43,COLUMNS(AT43:AT43)),\"\")","v":""},null,null,"",""]
[null,null,null,null,null,null,null,null,null,null,null,null,null,null,null,null,null,null,null,null,null,null,"N1","Suskystintos naftos dujos",4.5999999999999999E-3,null,14,"","",null,{"$f":"IFERROR(INDEX(X$31:X$55,AC44,COLUMNS(AE44:AE44)),\"\")","v":""},null,null,"","",null,null,"N2","Benzinas",4281,null,14,"","",null,{"$f":"IFERROR(INDEX(AM$31:AM$49,AR44,COLUMNS(AT44:AT44)),\"\")","v":""},null,null,"",""]
[null,null,null,null,null,null,null,null,null,null,null,null,null,null,null,null,null,null,null,null,null,null,"N1","Dyzelinas",3.7000000000000002E-3,null,15,"","",null,{"$f":"IFERROR(INDEX(X$31:X$55,AC45,COLUMNS(AE45:AE45)),\"\")","v":""},null,null,"","",null,null,"N2","Suskystintos naftos dujos",17245,null,15,"","",null,{"$f":"IFERROR(INDEX(AM$31:AM$49,AR45,COLUMNS(AT45:AT45)),\"\")","v":""},null,null,"",""]
[null,null,null,null,null,"* Vidutinė metinė rida (2019 m., Valstybės duomenų agentūra)",null,null,null,null,null,null,null,null,null,null,null,null,null,null,null,null,null,null,null,null,null,"","",null,{"$f":"IFERROR(INDEX(X$31:X$55,AC46,COLUMNS(AE46:AE46)),\"\")","v":""},null,null,"","",null,null,"N2","Dyzelinas",23713,null,16,"","",null,{"$f":"IFERROR(INDEX(AM$31:AM$49,AR46,COLUMNS(AT46:AT46)),\"\")","v":""},null,null,"",""]
[null,null,null,null,null,null,null,null,null,null,null,null,null,null,null,null,null,null,null,null,null,null,null,null,null,null,17,"","",null,{"$f":"IFERROR(INDEX(X$31:X$55,AC47,COLUMNS(AE47:AE47)),\"\")","v":""},null,null,"","",null,null,"N2","-",null,null,17,"","",null,{"$f":"IFERROR(INDEX(AM$31:AM$49,AR47,COLUMNS(AT47:AT47)),\"\")","v":""},null,null,"",""]
[null,null,null,null,null,"* * Neįvedus reikšmės, % bus paskaičiuotas automatiškai. Išsamiau žr. NAUDOJIMO INSTRUKCIJA - ridos pokytis (%) ",null,null,null,null,null,null,null,null,null,null,null,null,null,null,null,null,"N2","Benzinas",5.1000000000000004E-3,null,18,"","",null,{"$f":"IFERROR(INDEX(X$31:X$55,AC48,COLUMNS(AE48:AE48)),\"\")","v":""},null,null,"","",null,null,"N3","Dyzelinas",56275,null,18,"","",null,{"$f":"IFERROR(INDEX(AM$31:AM$49,AR48,COLUMNS(AT48:AT48)),\"\")","v":""},null,null,"",""]
[null,null,null,null,null,null,null,null,null,null,null,null,null,null,null,null,null,null,null,null,null,null,"N2","Suskystintos naftos dujos",7.9000000000000008E-3,null,19,"","",null,{"$f":"IFERROR(INDEX(X$31:X$55,AC49,COLUMNS(AE49:AE49)),\"\")","v":""},null,null,"","",null,null,"N3","-",null,null,19,"","",null,{"$f":"IFERROR(INDEX(AM$31:AM$49,AR49,COLUMNS(AT49:AT49)),\"\")","v":""},null,null,"",""]
[null,null,null,null,null,null,null,null,null,null,null,null,null,null,null,null,null,null,null,null,null,null,"N2","Dyzelinas",9.7999999999999997E-3,null,20,"","",null,{"$f":"IFERROR(INDEX(X$31:X$55,AC50,COLUMNS(AE50:AE50)),\"\")","v":""},null,null,"",""]
[null,null,null,null,null,null,null,null,null,null,null,null,null,null,null,null,null,null,null,null,null,null,null,null,null,null,null,"","",null,{"$f":"IFERROR(INDEX(X$31:X$55,AC51,COLUMNS(AE51:AE51)),\"\")","v":""},null,null,"",""]
[null,null,null,null,null,null,null,null,null,null,null,null,null,null,null,null,null,null,null,null,null,null,null,null,null,null,22,"","",null,{"$f":"IFERROR(INDEX(X$31:X$55,AC52,COLUMNS(AE52:AE52)),\"\")","v":""},null,null,"",""]
[null,null,null,null,null,null,null,null,null,null,null,null,null,null,null,null,null,null,null,null,null,null,"N3","Dyzelinas",2.1700000000000001E-2,null,23,"","",null,{"$f":"IFERROR(INDEX(X$31:X$55,AC53,COLUMNS(AE53:AE53)),\"\")","v":""},null,null,"",""]
[null,null,null,null,null,null,null,null,null,null,null,null,null,null,null,null,null,null,null,null,null,null,null,null,null,null,null,"","",null,{"$f":"IFERROR(INDEX(X$31:X$55,AC54,COLUMNS(AE54:AE54)),\"\")","v":""},null,null,"",""]
[null,null,null,null,null,null,null,null,null,null,null,null,null,null,null,null,null,null,null,null,null,null,null,null,null,null,25,"","",null,{"$f":"IFERROR(INDEX(X$31:X$55,AC55,COLUMNS(AE55:AE55)),\"\")","v":""},null,null,"",""]
[]
[null,null,null,null,null,null,null,null,null,null,null,null,null,null,null,null,null,null,null,null,2025,"Duomenys \"helper\" stulpeliams",null,null,"Helper stulpeliai",null,null,null,null,"Degalų rušies dropdown'ui. Pagal H3 stulpelį suranda kokios kuro rūšis aktualios TP klasei",null,null,null,null,null,null,"Duomenys \"helper\" stulpeliams",null,null,"Helper stulpeliai",null,null,null,null,"Degalų rušies dropdown'ui. Pagal H3 stulpelį suranda kokios kuro rūšis aktualios TP klasei"]
[null,null,null,null,null,null,null,null,null,null,null,null,null,null,null,null,null,null,null,null,null,"Priemonės tipas","Kuro tipas","kt CO2 eq. per metus",null,"H1","H2","H3",null,"Dropdown 2",null,null,"H2 for old vehicle CO2 eq. value","H3 for CO2 eq. value",null,null,"Priemonės tipas","Kuro tipas","CO2 g/km",null,"H1","H2","H3",null,"Dropdown 2",null,null,"H2 for old vehicle CO2 eq. value","H3 for CO2 eq. value"]
[null,null,null,null,null,null,null,null,null,null,null,null,null,null,null,null,null,null,null,null,null,null,"M1","Benzinas",1.5E-3,null,1,{"$f":"IF(W59=K$9,AA59,\"\")","v":1},{"$f":"IFERROR(SMALL(AB$59:AB$83,AA59),\"\")","v":1},null,{"$f":"IFERROR(INDEX(X$59:X$83,AC59,COLUMNS(AE59:AE59)),\"\")","v":"Benzinas"},null,null,{"$f":"IF(AND(K$9=W59,X59=K$12),AA59,\"\")","v":""},{"$f":"IFERROR(SMALL(AH$59:AH$83,AA59),\"\")","v":2},null,null,"M1","Benzinas",9320,null,1,{"$f":"IF(AL59=K$9,AP59,\"\")","v":1},{"$f":"IFERROR(SMALL(AQ$59:AQ$77,AP59),\"\")","v":1},null,{"$f":"IFERROR(INDEX(AM$59:AM$77,AR59,COLUMNS(AT59:AT59)),\"\")","v":"Benzinas"},null,null,{"$f":"IF(AND(K$9=AL59,AM59=K$12),AP59,\"\")","v":""},{"$f":"IFERROR(SMALL(AW$59:AW$77,AP59),\"\")","v":2}]
[null,null,null,null,null,null,null,null,null,null,null,null,null,null,null,null,null,null,null,null,null,null,"M1","Suskystintos naftos dujos",2.7000000000000001E-3,null,2,2,{"$f":"IFERROR(SMALL(AB$59:AB$83,AA60),\"\")","v":2},null,{"$f":"IFERROR(INDEX(X$59:X$83,AC60,COLUMNS(AE60:AE60)),\"\")","v":"Suskystintos naftos dujos"},null,null,2,{"$f":"IFERROR(SMALL(AH$59:AH$83,AA60),\"\")","v":""},null,null,"M1","Suskystintos naftos dujos",12310,null,2,2,{"$f":"IFERROR(SMALL(AQ$59:AQ$77,AP60),\"\")","v":2},null,{"$f":"IFERROR(INDEX(AM$59:AM$77,AR60,COLUMNS(AT60:AT60)),\"\")","v":"Suskystintos naftos dujos"},null,null,2,""]
[null,null,null,null,null,null,null,null,null,null,null,null,null,null,null,null,null,null,null,null,null,null,"M1","Elektra",2.8999999999999998E-3,null,3,3,3,null,{"$f":"IFERROR(INDEX(X$59:X$83,AC61,COLUMNS(AE61:AE61)),\"\")","v":"Elektra"},null,null,"","",null,null,"M1","Elektra",27715,null,3,3,3,null,{"$f":"IFERROR(INDEX(AM$59:AM$77,AR61,COLUMNS(AT61:AT61)),\"\")","v":"Elektra"},null,null,"",""]
[null,null,null,null,null,null,null,null,null,null,null,null,null,null,null,null,null,null,null,null,null,null,"M1","Dyzelinas",1.9E-3,null,4,4,4,null,{"$f":"IFERROR(INDEX(X$59:X$83,AC62,COLUMNS(AE62:AE62)),\"\")","v":"Dyzelinas"},null,null,"","",null,null,"M1","Dyzelinas",14415,null,4,4,4,null,{"$f":"IFERROR(INDEX(AM$59:AM$77,AR62,COLUMNS(AT62:AT62)),\"\")","v":"Dyzelinas"},null,null,"",""]
[null,null,null,null,null,null,null,null,null,null,null,null,null,null,null,null,null,null,null,null,null,null,null,null,null,null,null,"","",null,{"$f":"IFERROR(INDEX(X$59:X$83,AC63,COLUMNS(AE63:AE63)),\"\")","v":""},null,null,"","",null,null,"M1","-",null,null,5,5,5,null,{"$f":"IFERROR(INDEX(AM$59:AM$77,AR63,COLUMNS(AT63:AT63)),\"\")","v":"-"},null,null,"",""]
[null,null,null,null,null,null,null,null,null,null,null,null,null,null,null,null,null,null,null,null,null,null,"M1","-",null,null,6,6,"",null,{"$f":"IFERROR(INDEX(X$59:X$83,AC64,COLUMNS(AE64:AE64)),\"\")","v":""},null,null,"","",null,null,"M2","Dyzelinas",31130,null,6,"","",null,{"$f":"IFERROR(INDEX(AM$59:AM$77,AR64,COLUMNS(AT64:AT64)),\"\")","v":""},null,null,"",""]
[null,null,null,null,null,null,null,null,null,null,null,null,null,null,null,null,null,null,null,null,null,null,"M2","Dyzelinas",1.5599999999999999E-2,null,7,"","",null,{"$f":"IFERROR(INDEX(X$59:X$83,AC65,COLUMNS(AE65:AE65)),\"\")","v":""},null,null,"","",null,null,"M2","-",null,null,7,"","",null,{"$f":"IFERROR(INDEX(AM$59:AM$77,AR65,COLUMNS(AT65:AT65)),\"\")","v":""},null,null,"",""]
[null,null,null,null,null,null,null,null,null,null,null,null,null,null,null,null,null,null,null,null,null,null,null,null,null,null,null,"","",null,{"$f":"IFERROR(INDEX(X$59:X$83,AC66,COLUMNS(AE66:AE66)),\"\")","v":""},null,null,"","",null,null,"M3","Dyzelinas",45366,null,8,"","",null,{"$f":"IFERROR(INDEX(AM$59:AM$77,AR66,COLUMNS(AT66:AT66)),\"\")","v":""},null,null,"",""]
[null,null,null,null,null,null,null,null,null,null,null,null,null,null,null,null,null,null,null,null,null,null,null,null,null,null,9,"","",null,{"$f":"IFERROR(INDEX(X$59:X$83,AC67,COLUMNS(AE67:AE67)),\"\")","v":""},null,null,"","",null,null,"M3","-",null,null,9,"","",null,{"$f":"IFERROR(INDEX(AM$59:AM$77,AR67,COLUMNS(AT67:AT67)),\"\")","v":""},null,null,"",""]
[null,null,null,null,null,null,null,null,null,null,null,null,null,null,null,null,null,null,null,null,null,null,"M3","Dyzelinas",8.8499999999999995E-2,null,10,"","",null,{"$f":"IFERROR(INDEX(X$59:X$83,AC68,COLUMNS(AE68:AE68)),\"\")","v":""},null,null,"","",null,null,"N1","Benzinas",12919,null,10,"","",null,{"$f":"IFERROR(INDEX(AM$59:AM$77,AR68,COLUMNS(AT68:AT68)),\"\")","v":""},null,null,"",""]
[null,null,null,null,null,null,null,null,null,null,null,null,null,null,null,null,null,null,null,null,null,null,null,null,null,null,null,"","",null,{"$f":"IFERROR(INDEX(X$59:X$83,AC69,COLUMNS(AE69:AE69)),\"\")","v":""},null,null,"","",null,null,"N1","Suskystintos naftos dujos",12919,null,11,"","",null,{"$f":"IFERROR(INDEX(AM$59:AM$77,AR69,COLUMNS(AT69:AT69)),\"\")","v":""},null,null,"",""]
[null,null,null,null,null,null,null,null,null,null,null,null,null,null,null,null,null,null,null,null,null,null,null,null,null,null,12,"","",null,{"$f":"IFERROR(INDEX(X$59:X$83,AC70,COLUMNS(AE70:AE70)),\"\")","v":""},null,null,"","",null,null,"N1","Dyzelinas",20787,null,12,"","",null,{"$f":"IFERROR(INDEX(AM$59:AM$77,AR70,COLUMNS(AT70:AT70)),\"\")","v":""},null,null,"",""]
[null,null,null,null,null,null,null,null,null,null,null,null,null,null,null,null,null,null,null,null,null,null,"N1","Benzinas",3.5000000000000001E-3,null,13,"","",null,{"$f":"IFERROR(INDEX(X$59:X$83,AC71,COLUMNS(AE71:AE71)),\"\")","v":""},null,null,"","",null,null,"N1","-",null,null,13,"","",null,{"$f":"IFERROR(INDEX(AM$59:AM$77,AR71,COLUMNS(AT71:AT71)),\"\")","v":""},null,null,"",""]
[null,null,null,null,null,null,null,null,null,null,null,null,null,null,null,null,null,null,null,null,null,null,"N1","Suskystintos naftos dujos",4.5999999999999999E-3,null,14,"","",null,{"$f":"IFERROR(INDEX(X$59:X$83,AC72,COLUMNS(AE72:AE72)),\"\")","v":""},null,null,"","",null,null,"N2","Benzinas",4281,null,14,"","",null,{"$f":"IFERROR(INDEX(AM$59:AM$77,AR72,COLUMNS(AT72:AT72)),\"\")","v":""},null,null,"",""]
[null,null,null,null,null,null,null,null,null,null,null,null,null,null,null,null,null,null,null,null,null,null,"N1","Dyzelinas",3.5000000000000001E-3,null,15,"","",null,{"$f":"IFERROR(INDEX(X$59:X$83,AC73,COLUMNS(AE73:AE73)),\"\")","v":""},null,null,"","",null,null,"N2","Suskystintos naftos dujos",17245,null,15,"","",null,{"$f":"IFERROR(INDEX(AM$59:AM$77,AR73,COLUMNS(AT73:AT73)),\"\")","v":""},null,null,"",""]
[null,null,null,null,null,null,null,null,null,null,null,null,null,null,null,null,null,null,null,null,null,null,null,null,null,null,null,"","",null,{"$f":"IFERROR(INDEX(X$59:X$83,AC74,COLUMNS(AE74:AE74)),\"\")","v":""},null,null,"","",null,null,"N2","Dyzelinas",23713,null,16,"","",null,{"$f":"IFERROR(INDEX(AM$59:AM$77,AR74,COLUMNS(AT74:AT74)),\"\")","v":""},null,null,"",""]
[null,null,null,null,null,null,null,null,null,null,null,null,null,null,null,null,null,null,null,null,null,null,null,null,null,null,17,"","",null,{"$f":"IFERROR(INDEX(X$59:X$83,AC75,COLUMNS(AE75:AE75)),\"\")","v":""},null,null,"","",null,null,"N2","-",null,null,17,"","",null,{"$f":"IFERROR(INDEX(AM$59:AM$77,AR75,COLUMNS(AT75:AT75)),\"\")","v":""},null,null,"",""]
[null,null,null,null,null,null,null,null,null,null,null,null,null,null,null,null,null,null,null,null,null,null,"N2","Benzinas",5.1000000000000004E-3,null,18,"","",null,{"$f":"IFERROR(INDEX(X$59:X$83,AC76,COLUMNS(AE76:AE76)),\"\")","v":""},null,null,"","",null,null,"N3","Dyzelinas",56275,null,18,"","",null,{"$f":"IFERROR(INDEX(AM$59:AM$77,AR76,COLUMNS(AT76:AT76)),\"\")","v":""},null,null,"",""]
[null,null,null,null,null,null,null,null,null,null,null,null,null,null,null,null,null,null,null,null,null,null,"N2","Suskystintos naftos dujos",7.9000000000000008E-3,null,19,"","",null,{"$f":"IFERROR(INDEX(X$59:X$83,AC77,COLUMNS(AE77:AE77)),\"\")","v":""},null,null,"","",null,null,"N3","-",null,null,19,"","",null,{"$f":"IFERROR(INDEX(AM$59:AM$77,AR77,COLUMNS(AT77:AT77)),\"\")","v":""},null,null,"",""]
[null,null,null,null,null,null,null,null,null,null,null,null,null,null,null,null,null,null,null,null,null,null,"N2","Dyzelinas",9.7999999999999997E-3,null,20,"","",null,{"$f":"IFERROR(INDEX(X$59:X$83,AC78,COLUMNS(AE78:AE78)),\"\")","v":""},null,null,"",""]
[null,null,null,null,null,null,null,null,null,null,null,null,null,null,null,null,null,null,null,null,null,null,null,null,null,null,null,"","",null,{"$f":"IFERROR(INDEX(X$59:X$83,AC79,COLUMNS(AE79:AE79)),\"\")","v":""},null,null,"",""]
[null,null,null,null,null,null,null,null,null,null,null,null,null,null,null,null,null,null,null,null,null,null,null,null,null,null,22,"","",null,{"$f":"IFERROR(INDEX(X$59:X$83,AC80,COLUMNS(AE80:AE80)),\"\")","v":""},null,null,"",""]
[null,null,null,null,null,null,null,null,null,null,null,null,null,null,null,null,null,null,null,null,null,null,"N3","Dyzelinas",2.1100000000000001E-2,null,23,"","",null,{"$f":"IFERROR(INDEX(X$59:X$83,AC81,COLUMNS(AE81:AE81)),\"\")","v":""},null,null,"",""]
[null,null,null,null,null,null,null,null,null,null,null,null,null,null,null,null,null,null,null,null,null,null,null,null,null,null,null,"","",null,{"$f":"IFERROR(INDEX(X$59:X$83,AC82,COLUMNS(AE82:AE82)),\"\")","v":""},null,null,"",""]
[null,null,null,null,null,null,null,null,null,null,null,null,null,null,null,null,null,null,null,null,null,null,null,null,null,null,25,"","",null,{"$f":"IFERROR(INDEX(X$59:X$83,AC83,COLUMNS(AE83:AE83)),\"\")","v":""},null,null,"",""]
[]
[null,null,null,null,null,null,null,null,null,null,null,null,null,null,null,null,null,null,null,null,2026,"Duomenys \"helper\" stulpeliams",null,null,"Helper stulpeliai",null,null,null,null,"Degalų rušies dropdown'ui. Pagal H3 stulpelį suranda kokios kuro rūšis aktualios TP klasei",null,null,null,null,null,null,"Duomenys \"helper\" stulpeliams",null,null,"Helper stulpeliai",null,null,null,null,"Degalų rušies dropdown'ui. Pagal H3 stulpelį suranda kokios kuro rūšis aktualios TP klasei"]
[null,null,null,null,null,null,null,null,null,null,null,null,null,null,null,null,null,null,null,null,null,"Priemonės tipas","Kuro tipas","kt CO2 eq. per metus",null,"H1","H2","H3",null,"Dropdown 2",null,null,"H2 for old vehicle CO2 eq. value","H3 for CO2 eq. value",null,null,"Priemonės tipas","Kuro tipas","CO2 g/km",null,"H1","H2","H3",null,"Dropdown 2",null,null,"H2 for old vehicle CO2 eq. value","H3 for CO2 eq. value"]
[null,null,null,null,null,null,null,null,null,null,null,null,null,null,null,null,null,null,null,null,null,null,"M1","Benzinas",1.5E-3,null,1,{"$f":"IF(W87=L$9,AA87,\"\")","v":1},{"$f":"IFERROR(SMALL(AB$87:AB$111,AA87),\"\")","v":1},null,{"$f":"IFERROR(INDEX(X$87:X$111,AC87,COLUMNS(AE87:AE87)),\"\")","v":"Benzinas"},null,null,{"$f":"IF(AND(L$9=W87,X87=L$12),AA87,\"\")","v":""},{"$f":"IFERROR(SMALL(AH$87:AH$111,AA87),\"\")","v":2},null,null,"M1","Benzinas",9320,null,1,{"$f":"IF(AL87=L$9,AP87,\"\")","v":1},{"$f":"IFERROR(SMALL(AQ$87:AQ$105,AP87),\"\")","v":1},null,{"$f":"IFERROR(INDEX(AM$87:AM$105,AR87,COLUMNS(AT87:AT87)),\"\")","v":"Benzinas"},null,null,{"$f":"IF(AND(L$9=AL87,AM87=L$12),AP87,\"\")","v":""},{"$f":"IFERROR(SMALL(AW$87:AW$105,AP87),\"\")","v":2}]
[null,null,null,null,null,null,null,null,null,null,null,null,null,null,null,null,null,null,null,null,null,null,"M1","Suskystintos naftos dujos",2.7000000000000001E-3,null,2,2,2,null,{"$f":"IFERROR(INDEX(X$87:X$111,AC88,COLUMNS(AE88:AE88)),\"\")","v":"Suskystintos naftos dujos"},null,null,2,"",null,null,"M1","Suskystintos naftos dujos",12310,null,2,2,2,null,{"$f":"IFERROR(INDEX(AM$87:AM$105,AR88,COLUMNS(AT88:AT88)),\"\")","v":"Suskystintos naftos dujos"},null,null,2,""]
[null,null,null,null,null,null,null,null,null,null,null,null,null,null,null,null,null,null,null,null,null,null,"M1","Elektra",2.8999999999999998E-3,null,3,3,3,null,{"$f":"IFERROR(INDEX(X$87:X$111,AC89,COLUMNS(AE89:AE89)),\"\")","v":"Elektra"},null,null,"","",null,null,"M1","Elektra",27715,null,3,3,3,null,{"$f":"IFERROR(INDEX(AM$87:AM$105,AR89,COLUMNS(AT89:AT89)),\"\")","v":"Elektra"},null,null,"",""]
[null,null,null,null,null,null,null,null,null,null,null,null,null,null,null,null,null,null,null,null,null,null,"M1","Dyzelinas",1.8E-3,null,4,4,4,null,{"$f":"IFERROR(INDEX(X$87:X$111,AC90,COLUMNS(AE90:AE90)),\"\")","v":"Dyzelinas"},null,null,"","",null,null,"M1","Dyzelinas",14415,null,4,4,4,null,{"$f":"IFERROR(INDEX(AM$87:AM$105,AR90,COLUMNS(AT90:AT90)),\"\")","v":"Dyzelinas"},null,null,"",""]
[null,null,null,null,null,null,null,null,null,null,null,null,null,null,null,null,null,null,null,null,null,null,null,null,null,null,null,"","",null,{"$f":"IFERROR(INDEX(X$87:X$111,AC91,COLUMNS(AE91:AE91)),\"\")","v":""},null,null,"","",null,null,"M1","-",null,null,5,5,5,null,{"$f":"IFERROR(INDEX(AM$87:AM$105,AR91,COLUMNS(AT91:AT91)),\"\")","v":"-"},null,null,"",""]
[null,null,null,null,null,null,null,null,null,null,null,null,null,null,null,null,null,null,null,null,null,null,"M1","-",null,null,6,6,"",null,{"$f":"IFERROR(INDEX(X$87:X$111,AC92,COLUMNS(AE92:AE92)),\"\")","v":""},null,null,"","",null,null,"M2","Dyzelinas",31130,null,6,"","",null,{"$f":"IFERROR(INDEX(AM$87:AM$105,AR92,COLUMNS(AT92:AT92)),\"\")","v":""},null,null,"",""]
[null,null,null,null,null,null,null,null,null,null,null,null,null,null,null,null,null,null,null,null,null,null,"M2","Dyzelinas",1.5599999999999999E-2,null,7,"","",null,{"$f":"IFERROR(INDEX(X$87:X$111,AC93,COLUMNS(AE93:AE93)),\"\")","v":""},null,null,"","",null,null,"M2","-",null,null,7,"","",null,{"$f":"IFERROR(INDEX(AM$87:AM$105,AR93,COLUMNS(AT93:AT93)),\"\")","v":""},null,null,"",""]
[null,null,null,null,null,null,null,null,null,null,null,null,null,null,null,null,null,null,null,null,null,null,null,null,null,null,null,"","",null,{"$f":"IFERROR(INDEX(X$87:X$111,AC94,COLUMNS(AE94:AE94)),\"\")","v":""},null,null,"","",null,null,"M3","Dyzelinas",45366,null,8,"","",null,{"$f":"IFERROR(INDEX(AM$87:AM$105,AR94,COLUMNS(AT94:AT94)),\"\")","v":""},null,null,"",""]
[null,null,null,null,null,null,null,null,null,null,null,null,null,null,null,null,null,null,null,null,null,null,null,null,null,null,9,"","",null,{"$f":"IFERROR(INDEX(X$87:X$111,AC95,COLUMNS(AE95:AE95)),\"\")","v":""},null,null,"","",null,null,"M3","-",null,null,9,"","",null,{"$f":"IFERROR(INDEX(AM$87:AM$105,AR95,COLUMNS(AT95:AT95)),\"\")","v":""},null,null,"",""]
[null,null,null,null,null,null,null,null,null,null,null,null,null,null,null,null,null,null,null,null,null,null,"M3","Dyzelinas",8.8499999999999995E-2,null,10,"","",null,{"$f":"IFERROR(INDEX(X$87:X$111,AC96,COLUMNS(AE96:AE96)),\"\")","v":""},null,null,"","",null,null,"N1","Benzinas",12919,null,10,"","",null,{"$f":"IFERROR(INDEX(AM$87:AM$105,AR96,COLUMNS(AT96:AT96)),\"\")","v":""},null,null,"",""]
[null,null,null,null,null,null,null,null,null,null,null,null,null,null,null,null,null,null,null,null,null,null,null,null,null,null,null,"","",null,{"$f":"IFERROR(INDEX(X$87:X$111,AC97,COLUMNS(AE97:AE97)),\"\")","v":""},null,null,"","",null,null,"N1","Suskystintos naftos dujos",12919,null,11,"","",null,{"$f":"IFERROR(INDEX(AM$87:AM$105,AR97,COLUMNS(AT97:AT97)),\"\")","v":""},null,null,"",""]
[null,null,null,null,null,null,null,null,null,null,null,null,null,null,null,null,null,null,null,null,null,null,null,null,null,null,12,"","",null,{"$f":"IFERROR(INDEX(X$87:X$111,AC98,COLUMNS(AE98:AE98)),\"\")","v":""},null,null,"","",null,null,"N1","Dyzelinas",20787,null,12,"","",null,{"$f":"IFERROR(INDEX(AM$87:AM$105,AR98,COLUMNS(AT98:AT98)),\"\")","v":""},null,null,"",""]
[null,null,null,null,null,null,null,null,null,null,null,null,null,null,null,null,null,null,null,null,null,null,"N1","Benzinas",3.5000000000000001E-3,null,13,"","",null,{"$f":"IFERROR(INDEX(X$87:X$111,AC99,COLUMNS(AE99:AE99)),\"\")","v":""},null,null,"","",null,null,"N1","-",null,null,13,"","",null,{"$f":"IFERROR(INDEX(AM$87:AM$105,AR99,COLUMNS(AT99:AT99)),\"\")","v":""},null,null,"",""]
[null,null,null,null,null,null,null,null,null,null,null,null,null,null,null,null,null,null,null,null,null,null,"N1","Suskystintos naftos dujos",4.5999999999999999E-3,null,14,"","",null,{"$f":"IFERROR(INDEX(X$87:X$111,AC100,COLUMNS(AE100:AE100)),\"\")","v":""},null,null,"","",null,null,"N2","Benzinas",4281,null,14,"","",null,{"$f":"IFERROR(INDEX(AM$87:AM$105,AR100,COLUMNS(AT100:AT100)),\"\")","v":""},null,null,"",""]
[null,null,null,null,null,null,null,null,null,null,null,null,null,null,null,null,null,null,null,null,null,null,"N1","Dyzelinas",3.3999999999999998E-3,null,15,"","",null,{"$f":"IFERROR(INDEX(X$87:X$111,AC101,COLUMNS(AE101:AE101)),\"\")","v":""},null,null,"","",null,null,"N2","Suskystintos naftos dujos",17245,null,15,"","",null,{"$f":"IFERROR(INDEX(AM$87:AM$105,AR101,COLUMNS(AT101:AT101)),\"\")","v":""},null,null,"",""]
[null,null,null,null,null,null,null,null,null,null,null,null,null,null,null,null,null,null,null,null,null,null,null,null,null,null,null,"","",null,{"$f":"IFERROR(INDEX(X$87:X$111,AC102,COLUMNS(AE102:AE102)),\"\")","v":""},null,null,"","",null,null,"N2","Dyzelinas",23713,null,16,"","",null,{"$f":"IFERROR(INDEX(AM$87:AM$105,AR102,COLUMNS(AT102:AT102)),\"\")","v":""},null,null,"",""]
[null,null,null,null,null,null,null,null,null,null,null,null,null,null,null,null,null,null,null,null,null,null,null,null,null,null,17,"","",null,{"$f":"IFERROR(INDEX(X$87:X$111,AC103,COLUMNS(AE103:AE103)),\"\")","v":""},null,null,"","",null,null,"N2","-",null,null,17,"","",null,{"$f":"IFERROR(INDEX(AM$87:AM$105,AR103,COLUMNS(AT103:AT103)),\"\")","v":""},null,null,"",""]
[null,null,null,null,null,null,null,null,null,null,null,null,null,null,null,null,null,null,null,null,null,null,"N2","Benzinas",5.1000000000000004E-3,null,18,"","",null,{"$f":"IFERROR(INDEX(X$87:X$111,AC104,COLUMNS(AE104:AE104)),\"\")","v":""},null,null,"","",null,null,"N3","Dyzelinas",56275,null,18,"","",null,{"$f":"IFERROR(INDEX(AM$87:AM$105,AR104,COLUMNS(AT104:AT104)),\"\")","v":""},null,null,"",""]
[null,null,null,null,null,null,null,null,null,null,null,null,null,null,null,null,null,null,null,null,null,null,"N2","Suskystintos naftos dujos",7.9000000000000008E-3,null,19,"","",null,{"$f":"IFERROR(INDEX(X$87:X$111,AC105,COLUMNS(AE105:AE105)),\"\")","v":""},null,null,"","",null,null,"N3","-",null,null,19,"","",null,{"$f":"IFERROR(INDEX(AM$87:AM$105,AR105,COLUMNS(AT105:AT105)),\"\")","v":""},null,null,"",""]
[null,null,null,null,null,null,null,null,null,null,null,null,null,null,null,null,null,null,null,null,null,null,"N2","Dyzelinas",9.7999999999999997E-3,null,20,"","",null,{"$f":"IFERROR(INDEX(X$87:X$111,AC106,COLUMNS(AE106:AE106)),\"\")","v":""},null,null,"",""]
[null,null,null,null,null,null,null,null,null,null,null,null,null,null,null,null,null,null,null,null,null,null,null,null,null,null,null,"","",null,{"$f":"IFERROR(INDEX(X$87:X$111,AC107,COLUMNS(AE107:AE107)),\"\")","v":""},null,null,"",""]
[null,null,null,null,null,null,null,null,null,null,null,null,null,null,null,null,null,null,null,null,null,null,null,null,null,null,22,"","",null,{"$f":"IFERROR(INDEX(X$87:X$111,AC108,COLUMNS(AE108:AE108)),\"\")","v":""},null,null,"",""]
[null,null,null,null,null,null,null,null,null,null,null,null,null,null,null,null,null,null,null,null,null,null,"N3","Dyzelinas",1.9800000000000002E-2,null,23,"","",null,{"$f":"IFERROR(INDEX(X$87:X$111,AC109,COLUMNS(AE109:AE109)),\"\")","v":""},null,null,"",""]
[null,null,null,null,null,null,null,null,null,null,null,null,null,null,null,null,null,null,null,null,null,null,null,null,null,null,null,"","",null,{"$f":"IFERROR(INDEX(X$87:X$111,AC110,COLUMNS(AE110:AE110)),\"\")","v":""},null,null,"",""]
[null,null,null,null,null,null,null,null,null,null,null,null,null,null,null,null,null,null,null,null,null,null,null,null,null,null,25,"","",null,{"$f":"IFERROR(INDEX(X$87:X$111,AC111,COLUMNS(AE111:AE111)),\"\")","v":""},null,null,"",""]
[]
[null,null,null,null,null,null,null,null,null,null,null,null,null,null,null,null,null,null,null,null,2027,"Duomenys \"helper\" stulpeliams",null,null,"Helper stulpeliai",null,null,null,null,"Degalų rušies dropdown'ui. Pagal H3 stulpelį suranda kokios kuro rūšis aktualios TP klasei",null,null,null,null,null,null,"Duomenys \"helper\" stulpeliams",null,null,"Helper stulpeliai",null,null,null,null,"Degalų rušies dropdown'ui. Pagal H3 stulpelį suranda kokios kuro rūšis aktualios TP klasei"]
[null,null,null,null,null,null,null,null,null,null,null,null,null,null,null,null,null,null,null,null,null,"Priemonės tipas","Kuro tipas","kt CO2 eq. per metus",null,"H1","H2","H3",null,"Dropdown 2",null,null,"H2 for old vehicle CO2 eq. value","H3 for CO2 eq. value",null,null,"Priemonės tipas","Kuro tipas","CO2 g/km",null,"H1","H2","H3",null,"Dropdown 2",null,null,"H2 for old vehicle CO2 eq. value","H3 for CO2 eq. value"]
[null,null,null,null,null,null,null,null,null,null,null,null,null,null,null,null,null,null,null,null,null,null,"M1","Benzinas",1.5E-3,null,1,{"$f":"IF(W115=M$9,AA115,\"\")","v":1},{"$f":"IFERROR(SMALL(AB$115:AB$139,AA115),\"\")","v":1},null,{"$f":"IFERROR(INDEX(X$115:X$139,AC115,COLUMNS(AE115:AE115)),\"\")","v":"Benzinas"},null,null,{"$f":"IF(AND(M$9=W115,X115=M$12),AA115,\"\")","v":""},{"$f":"IFERROR(SMALL(AH$115:AH$139,AA115),\"\")","v":2},null,null,"M1","Benzinas",9320,null,1,{"$f":"IF(AL115=M$9,AP115,\"\")","v":1},{"$f":"IFERROR(SMALL(AQ$115:AQ$133,AP115),\"\")","v":1},null,{"$f":"IFERROR(INDEX(AM$115:AM$133,AR115,COLUMNS(AT115:AT115)),\"\")","v":"Benzinas"},null,null,{"$f":"IF(AND(M$9=AL115,AM115=M$12),AP115,\"\")","v":""},{"$f":"IFERROR(SMALL(AW$115:AW$133,AP115),\"\")","v":2}]
[null,null,null,null,null,null,null,null,null,null,null,null,null,null,null,null,null,null,null,null,null,null,"M1","Suskystintos naftos dujos",2.7000000000000001E-3,null,2,2,2,null,{"$f":"IFERROR(INDEX(X$115:X$139,AC116,COLUMNS(AE116:AE116)),\"\")","v":"Suskystintos naftos dujos"},null,null,2,"",null,null,"M1","Suskystintos naftos dujos",12310,null,2,2,2,null,{"$f":"IFERROR(INDEX(AM$115:AM$133,AR116,COLUMNS(AT116:AT116)),\"\")","v":"Suskystintos naftos dujos"},null,null,2,""]
[null,null,null,null,null,null,null,null,null,null,null,null,null,null,null,null,null,null,null,null,null,null,"M1","Elektra",2.8999999999999998E-3,null,3,3,3,null,{"$f":"IFERROR(INDEX(X$115:X$139,AC117,COLUMNS(AE117:AE117)),\"\")","v":"Elektra"},null,null,"","",null,null,"M1","Elektra",27715,null,3,3,3,null,{"$f":"IFERROR(INDEX(AM$115:AM$133,AR117,COLUMNS(AT117:AT117)),\"\")","v":"Elektra"},null,null,"",""]
[null,null,null,null,null,null,null,null,null,null,null,null,null,null,null,null,null,null,null,null,null,null,"M1","Dyzelinas",1.8E-3,null,4,4,4,null,{"$f":"IFERROR(INDEX(X$115:X$139,AC118,COLUMNS(AE118:AE118)),\"\")","v":"Dyzelinas"},null,null,"","",null,null,"M1","Dyzelinas",14415,null,4,4,4,null,{"$f":"IFERROR(INDEX(AM$115:AM$133,AR118,COLUMNS(AT118:AT118)),\"\")","v":"Dyzelinas"},null,null,"",""]
[null,null,null,null,null,null,null,null,null,null,null,null,null,null,null,null,null,null,null,null,null,null,null,null,null,null,null,"","",null,{"$f":"IFERROR(INDEX(X$115:X$139,AC119,COLUMNS(AE119:AE119)),\"\")","v":""},null,null,"","",null,null,"M1","-",null,null,5,5,5,null,{"$f":"IFERROR(INDEX(AM$115:AM$133,AR119,COLUMNS(AT119:AT119)),\"\")","v":"-"},null,null,"",""]
[null,null,null,null,null,null,null,null,null,null,null,null,null,null,null,null,null,null,null,null,null,null,"M1","-",null,null,6,6,"",null,{"$f":"IFERROR(INDEX(X$115:X$139,AC120,COLUMNS(AE120:AE120)),\"\")","v":""},null,null,"","",null,null,"M2","Dyzelinas",31130,null,6,"","",null,{"$f":"IFERROR(INDEX(AM$115:AM$133,AR120,COLUMNS(AT120:AT120)),\"\")","v":""},null,null,"",""]
[null,null,null,null,null,null,null,null,null,null,null,null,null,null,null,null,null,null,null,null,null,null,"M2","Dyzelinas",1.5599999999999999E-2,null,7,"","",null,{"$f":"IFERROR(INDEX(X$115:X$139,AC121,COLUMNS(AE121:AE121)),\"\")","v":""},null,null,"","",null,null,"M2","-",null,null,7,"","",null,{"$f":"IFERROR(INDEX(AM$115:AM$133,AR121,COLUMNS(AT121:AT121)),\"\")","v":""},null,null,"",""]
[null,null,null,null,null,null,null,null,null,null,null,null,null,null,null,null,null,null,null,null,null,null,null,null,null,null,null,"","",null,{"$f":"IFERROR(INDEX(X$115:X$139,AC122,COLUMNS(AE122:AE122)),\"\")","v":""},null,null,"","",null,null,"M3","Dyzelinas",45366,null,8,"","",null,{"$f":"IFERROR(INDEX(AM$115:AM$133,AR122,COLUMNS(AT122:AT122)),\"\")","v":""},null,null,"",""]
[null,null,null,null,null,null,null,null,null,null,null,null,null,null,null,null,null,null,null,null,null,null,null,null,null,null,9,"","",null,{"$f":"IFERROR(INDEX(X$115:X$139,AC123,COLUMNS(AE123:AE123)),\"\")","v":""},null,null,"","",null,null,"M3","-",null,null,9,"","",null,{"$f":"IFERROR(INDEX(AM$115:AM$133,AR123,COLUMNS(AT123:AT123)),\"\")","v":""},null,null,"",""]
[null,null,null,null,null,null,null,null,null,null,null,null,null,null,null,null,null,null,null,null,null,null,"M3","Dyzelinas",8.8499999999999995E-2,null,10,"","",null,{"$f":"IFERROR(INDEX(X$115:X$139,AC124,COLUMNS(AE124:AE124)),\"\")","v":""},null,null,"","",null,null,"N1","Benzinas",12919,null,10,"","",null,{"$f":"IFERROR(INDEX(AM$115:AM$133,AR124,COLUMNS(AT124:AT124)),\"\")","v":""},null,null,"",""]
[null,null,null,null,null,null,null,null,null,null,null,null,null,null,null,null,null,null,null,null,null,null,null,null,null,null,null,"","",null,{"$f":"IFERROR(INDEX(X$115:X$139,AC125,COLUMNS(AE125:AE125)),\"\")","v":""},null,null,"","",null,null,"N1","Suskystintos naftos dujos",12919,null,11,"","",null,{"$f":"IFERROR(INDEX(AM$115:AM$133,AR125,COLUMNS(AT125:AT125)),\"\")","v":""},null,null,"",""]
[null,null,null,null,null,null,null,null,null,null,null,null,null,null,null,null,null,null,null,null,null,null,null,null,null,null,12,"","",null,{"$f":"IFERROR(INDEX(X$115:X$139,AC126,COLUMNS(AE126:AE126)),\"\")","v":""},null,null,"","",null,null,"N1","Dyzelinas",20787,null,12,"","",null,{"$f":"IFERROR(INDEX(AM$115:AM$133,AR126,COLUMNS(AT126:AT126)),\"\")","v":""},null,null,"",""]
[null,null,null,null,null,null,null,null,null,null,null,null,null,null,null,null,null,null,null,null,null,null,"N1","Benzinas",3.3999999999999998E-3,null,13,"","",null,{"$f":"IFERROR(INDEX(X$115:X$139,AC127,COLUMNS(AE127:AE127)),\"\")","v":""},null,null,"","",null,null,"N1","-",null,null,13,"","",null,{"$f":"IFERROR(INDEX(AM$115:AM$133,AR127,COLUMNS(AT127:AT127)),\"\")","v":""},null,null,"",""]
[null,null,null,null,null,null,null,null,null,null,null,null,null,null,null,null,null,null,null,null,null,null,"N1","Suskystintos naftos dujos",4.5999999999999999E-3,null,14,"","",null,{"$f":"IFERROR(INDEX(X$115:X$139,AC128,COLUMNS(AE128:AE128)),\"\")","v":""},null,null,"","",null,null,"N2","Benzinas",4281,null,14,"","",null,{"$f":"IFERROR(INDEX(AM$115:AM$133,AR128,COLUMNS(AT128:AT128)),\"\")","v":""},null,null,"",""]
[null,null,null,null,null,null,null,null,null,null,null,null,null,null,null,null,null,null,null,null,null,null,"N1","Dyzelinas",3.3E-3,null,15,"","",null,{"$f":"IFERROR(INDEX(X$115:X$139,AC129,COLUMNS(AE129:AE129)),\"\")","v":""},null,null,"","",null,null,"N2","Suskystintos naftos dujos",17245,null,15,"","",null,{"$f":"IFERROR(INDEX(AM$115:AM$133,AR129,COLUMNS(AT129:AT129)),\"\")","v":""},null,null,"",""]
[null,null,null,null,null,null,null,null,null,null,null,null,null,null,null,null,null,null,null,null,null,null,null,null,null,null,null,"","",null,{"$f":"IFERROR(INDEX(X$115:X$139,AC130,COLUMNS(AE130:AE130)),\"\")","v":""},null,null,"","",null,null,"N2","Dyzelinas",23713,null,16,"","",null,{"$f":"IFERROR(INDEX(AM$115:AM$133,AR130,COLUMNS(AT130:AT130)),\"\")","v":""},null,null,"",""]
[null,null,null,null,null,null,null,null,null,null,null,null,null,null,null,null,null,null,null,null,null,null,null,null,null,null,17,"","",null,{"$f":"IFERROR(INDEX(X$115:X$139,AC131,COLUMNS(AE131:AE131)),\"\")","v":""},null,null,"","",null,null,"N2","-",null,null,17,"","",null,{"$f":"IFERROR(INDEX(AM$115:AM$133,AR131,COLUMNS(AT131:AT131)),\"\")","v":""},null,null,"",""]
[null,null,null,null,null,null,null,null,null,null,null,null,null,null,null,null,null,null,null,null,null,null,"N2","Benzinas",5.1000000000000004E-3,null,18,"","",null,{"$f":"IFERROR(INDEX(X$115:X$139,AC132,COLUMNS(AE132:AE132)),\"\")","v":""},null,null,"","",null,null,"N3","Dyzelinas",56275,null,18,"","",null,{"$f":"IFERROR(INDEX(AM$115:AM$133,AR132,COLUMNS(AT132:AT132)),\"\")","v":""},null,null,"",""]
[null,null,null,null,null,null,null,null,null,null,null,null,null,null,null,null,null,null,null,null,null,null,"N2","Suskystintos naftos dujos",7.9000000000000008E-3,null,19,"","",null,{"$f":"IFERROR(INDEX(X$115:X$139,AC133,COLUMNS(AE133:AE133)),\"\")","v":""},null,null,"","",null,null,"N3","-",null,null,19,"","",null,{"$f":"IFERROR(INDEX(AM$115:AM$133,AR133,COLUMNS(AT133:AT133)),\"\")","v":""},null,null,"",""]
[null,null,null,null,null,null,null,null,null,null,null,null,null,null,null,null,null,null,null,null,null,null,"N2","Dyzelinas",9.7999999999999997E-3,null,20,"","",null,{"$f":"IFERROR(INDEX(X$115:X$139,AC134,COLUMNS(AE134:AE134)),\"\")","v":""},null,null,"",""]
[null,null,null,null,null,null,null,null,null,null,null,null,null,null,null,null,null,null,null,null,null,null,null,null,null,null,null,"","",null,{"$f":"IFERROR(INDEX(X$115:X$139,AC135,COLUMNS(AE135:AE135)),\"\")","v":""},null,null,"",""]
[null,null,null,null,null,null,null,null,null,null,null,null,null,null,null,null,null,null,null,null,null,null,null,null,null,null,22,"","",null,{"$f":"IFERROR(INDEX(X$115:X$139,AC136,COLUMNS(AE136:AE136)),\"\")","v":""},null,null,"",""]
[null,null,null,null,null,null,null,null,null,null,null,null,null,null,null,null,null,null,null,null,null,null,"N3","Dyzelinas",1.8700000000000001E-2,null,23,"","",null,{"$f":"IFERROR(INDEX(X$115:X$139,AC137,COLUMNS(AE137:AE137)),\"\")","v":""},null,null,"",""]
[null,null,null,null,null,null,null,null,null,null,null,null,null,null,null,null,null,null,null,null,null,null,null,null,null,null,null,"","",null,{"$f":"IFERROR(INDEX(X$115:X$139,AC138,COLUMNS(AE138:AE138)),\"\")","v":""},null,null,"",""]
[null,null,null,null,null,null,null,null,null,null,null,null,null,null,null,null,null,null,null,null,null,null,null,null,null,null,25,"","",null,{"$f":"IFERROR(INDEX(X$115:X$139,AC139,COLUMNS(AE139:AE139)),\"\")","v":""},null,null,"",""]
[]
[null,null,null,null,null,null,null,null,null,null,null,null,null,null,null,null,null,null,null,null,2028,"Duomenys \"helper\" stulpeliams",null,null,"Helper stulpeliai",null,null,null,null,"Degalų rušies dropdown'ui. Pagal H3 stulpelį suranda kokios kuro rūšis aktualios TP klasei",null,null,null,null,null,null,"Duomenys \"helper\" stulpeliams",null,null,"Helper stulpeliai",null,null,null,null,"Degalų rušies dropdown'ui. Pagal H3 stulpelį suranda kokios kuro rūšis aktualios TP klasei"]
[null,null,null,null,null,null,null,null,null,null,null,null,null,null,null,null,null,null,null,null,null,"Priemonės tipas","Kuro tipas","kt CO2 eq. per metus",null,"H1","H2","H3",null,"Dropdown 2",null,null,"H2 for old vehicle CO2 eq. value","H3 for CO2 eq. value",null,null,"Priemonės tipas","Kuro tipas","CO2 g/km",null,"H1","H2","H3",null,"Dropdown 2",null,null,"H2 for old vehicle CO2 eq. value","H3 for CO2 eq. value"]
[null,null,null,null,null,null,null,null,null,null,null,null,null,null,null,null,null,null,null,null,null,null,"M1","Benzinas",1.5E-3,null,1,{"$f":"IF(W143=N$9,AA143,\"\")","v":1},{"$f":"IFERROR(SMALL(AB$143:AB$167,AA143),\"\")","v":1},null,{"$f":"IFERROR(INDEX(X$143:X$167,AC143,COLUMNS(AE143:AE143)),\"\")","v":"Benzinas"},null,null,{"$f":"IF(AND(N$9=W143,X143=N$12),AA143,\"\")","v":""},{"$f":"IFERROR(SMALL(AH$143:AH$167,AA143),\"\")","v":2},null,null,"M1","Benzinas",9320,null,1,{"$f":"IF(AL143=N$9,AP143,\"\")","v":1},{"$f":"IFERROR(SMALL(AQ$143:AQ$161,AP143),\"\")","v":1},null,{"$f":"IFERROR(INDEX(AM$143:AM$161,AR143,COLUMNS(AT143:AT143)),\"\")","v":"Benzinas"},null,null,{"$f":"IF(AND(N$9=AL143,AM143=N$12),AP143,\"\")","v":""},{"$f":"IFERROR(SMALL(AW$143:AW$161,AP143),\"\")","v":2}]
[null,null,null,null,null,null,null,null,null,null,null,null,null,null,null,null,null,null,null,null,null,null,"M1","Suskystintos naftos dujos",2.7000000000000001E-3,null,2,2,2,null,{"$f":"IFERROR(INDEX(X$143:X$167,AC144,COLUMNS(AE144:AE144)),\"\")","v":"Suskystintos naftos dujos"},null,null,2,"",null,null,"M1","Suskystintos naftos dujos",12310,null,2,2,2,null,{"$f":"IFERROR(INDEX(AM$143:AM$161,AR144,COLUMNS(AT144:AT144)),\"\")","v":"Suskystintos naftos dujos"},null,null,2,""]
[null,null,null,null,null,null,null,null,null,null,null,null,null,null,null,null,null,null,null,null,null,null,"M1","Elektra",2.8999999999999998E-3,null,3,3,3,null,{"$f":"IFERROR(INDEX(X$143:X$167,AC145,COLUMNS(AE145:AE145)),\"\")","v":"Elektra"},null,null,"","",null,null,"M1","Elektra",27715,null,3,3,3,null,{"$f":"IFERROR(INDEX(AM$143:AM$161,AR145,COLUMNS(AT145:AT145)),\"\")","v":"Elektra"},null,null,"",""]
[null,null,null,null,null,null,null,null,null,null,null,null,null,null,null,null,null,null,null,null,null,null,"M1","Dyzelinas",1.6999999999999999E-3,null,4,4,4,null,{"$f":"IFERROR(INDEX(X$143:X$167,AC146,COLUMNS(AE146:AE146)),\"\")","v":"Dyzelinas"},null,null,"","",null,null,"M1","Dyzelinas",14415,null,4,4,4,null,{"$f":"IFERROR(INDEX(AM$143:AM$161,AR146,COLUMNS(AT146:AT146)),\"\")","v":"Dyzelinas"},null,null,"",""]
[null,null,null,null,null,null,null,null,null,null,null,null,null,null,null,null,null,null,null,null,null,null,null,null,null,null,null,"","",null,{"$f":"IFERROR(INDEX(X$143:X$167,AC147,COLUMNS(AE147:AE147)),\"\")","v":""},null,null,"","",null,null,"M1","-",null,null,5,5,5,null,{"$f":"IFERROR(INDEX(AM$143:AM$161,AR147,COLUMNS(AT147:AT147)),\"\")","v":"-"},null,null,"",""]
[null,null,null,null,null,null,null,null,null,null,null,null,null,null,null,null,null,null,null,null,null,null,"M1","-",null,null,6,6,"",null,{"$f":"IFERROR(INDEX(X$143:X$167,AC148,COLUMNS(AE148:AE148)),\"\")","v":""},null,null,"","",null,null,"M2","Dyzelinas",31130,null,6,"","",null,{"$f":"IFERROR(INDEX(AM$143:AM$161,AR148,COLUMNS(AT148:AT148)),\"\")","v":""},null,null,"",""]
[null,null,null,null,null,null,null,null,null,null,null,null,null,null,null,null,null,null,null,null,null,null,"M2","Dyzelinas",1.5599999999999999E-2,null,7,"","",null,{"$f":"IFERROR(INDEX(X$143:X$167,AC149,COLUMNS(AE149:AE149)),\"\")","v":""},null,null,"","",null,null,"M2","-",null,null,7,"","",null,{"$f":"IFERROR(INDEX(AM$143:AM$161,AR149,COLUMNS(AT149:AT149)),\"\")","v":""},null,null,"",""]
[null,null,null,null,null,null,null,null,null,null,null,null,null,null,null,null,null,null,null,null,null,null,null,null,null,null,null,"","",null,{"$f":"IFERROR(INDEX(X$143:X$167,AC150,COLUMNS(AE150:AE150)),\"\")","v":""},null,null,"","",null,null,"M3","Dyzelinas",45366,null,8,"","",null,{"$f":"IFERROR(INDEX(AM$143:AM$161,AR150,COLUMNS(AT150:AT150)),\"\")","v":""},null,null,"",""]
[null,null,null,null,null,null,null,null,null,null,null,null,null,null,null,null,null,null,null,null,null,null,null,null,null,null,9,"","",null,{"$f":"IFERROR(INDEX(X$143:X$167,AC151,COLUMNS(AE151:AE151)),\"\")","v":""},null,null,"","",null,null,"M3","-",null,null,9,"","",null,{"$f":"IFERROR(INDEX(AM$143:AM$161,AR151,COLUMNS(AT151:AT151)),\"\")","v":""},null,null,"",""]
[null,null,null,null,null,null,null,null,null,null,null,null,null,null,null,null,null,null,null,null,null,null,"M3","Dyzelinas",8.8499999999999995E-2,null,10,"","",null,{"$f":"IFERROR(INDEX(X$143:X$167,AC152,COLUMNS(AE152:AE152)),\"\")","v":""},null,null,"","",null,null,"N1","Benzinas",12919,null,10,"","",null,{"$f":"IFERROR(INDEX(AM$143:AM$161,AR152,COLUMNS(AT152:AT152)),\"\")","v":""},null,null,"",""]
[null,null,null,null,null,null,null,null,null,null,null,null,null,null,null,null,null,null,null,null,null,null,null,null,null,null,null,"","",null,{"$f":"IFERROR(INDEX(X$143:X$167,AC153,COLUMNS(AE153:AE153)),\"\")","v":""},null,null,"","",null,null,"N1","Suskystintos naftos dujos",12919,null,11,"","",null,{"$f":"IFERROR(INDEX(AM$143:AM$161,AR153,COLUMNS(AT153:AT153)),\"\")","v":""},null,null,"",""]
[null,null,null,null,null,null,null,null,null,null,null,null,null,null,null,null,null,null,null,null,null,null,null,null,null,null,12,"","",null,{"$f":"IFERROR(INDEX(X$143:X$167,AC154,COLUMNS(AE154:AE154)),\"\")","v":""},null,null,"","",null,null,"N1","Dyzelinas",20787,null,12,"","",null,{"$f":"IFERROR(INDEX(AM$143:AM$161,AR154,COLUMNS(AT154:AT154)),\"\")","v":""},null,null,"",""]
[null,null,null,null,null,null,null,null,null,null,null,null,null,null,null,null,null,null,null,null,null,null,"N1","Benzinas",3.3999999999999998E-3,null,13,"","",null,{"$f":"IFERROR(INDEX(X$143:X$167,AC155,COLUMNS(AE155:AE155)),\"\")","v":""},null,null,"","",null,null,"N1","-",null,null,13,"","",null,{"$f":"IFERROR(INDEX(AM$143:AM$161,AR155,COLUMNS(AT155:AT155)),\"\")","v":""},null,null,"",""]
[null,null,null,null,null,null,null,null,null,null,null,null,null,null,null,null,null,null,null,null,null,null,"N1","Suskystintos naftos dujos",4.5999999999999999E-3,null,14,"","",null,{"$f":"IFERROR(INDEX(X$143:X$167,AC156,COLUMNS(AE156:AE156)),\"\")","v":""},null,null,"","",null,null,"N2","Benzinas",4281,null,14,"","",null,{"$f":"IFERROR(INDEX(AM$143:AM$161,AR156,COLUMNS(AT156:AT156)),\"\")","v":""},null,null,"",""]
[null,null,null,null,null,null,null,null,null,null,null,null,null,null,null,null,null,null,null,null,null,null,"N1","Dyzelinas",3.2000000000000002E-3,null,15,"","",null,{"$f":"IFERROR(INDEX(X$143:X$167,AC157,COLUMNS(AE157:AE157)),\"\")","v":""},null,null,"","",null,null,"N2","Suskystintos naftos dujos",17245,null,15,"","",null,{"$f":"IFERROR(INDEX(AM$143:AM$161,AR157,COLUMNS(AT157:AT157)),\"\")","v":""},null,null,"",""]
[null,null,null,null,null,null,null,null,null,null,null,null,null,null,null,null,null,null,null,null,null,null,null,null,null,null,null,"","",null,{"$f":"IFERROR(INDEX(X$143:X$167,AC158,COLUMNS(AE158:AE158)),\"\")","v":""},null,null,"","",null,null,"N2","Dyzelinas",23713,null,16,"","",null,{"$f":"IFERROR(INDEX(AM$143:AM$161,AR158,COLUMNS(AT158:AT158)),\"\")","v":""},null,null,"",""]
[null,null,null,null,null,null,null,null,null,null,null,null,null,null,null,null,null,null,null,null,null,null,null,null,null,null,17,"","",null,{"$f":"IFERROR(INDEX(X$143:X$167,AC159,COLUMNS(AE159:AE159)),\"\")","v":""},null,null,"","",null,null,"N2","-",null,null,17,"","",null,{"$f":"IFERROR(INDEX(AM$143:AM$161,AR159,COLUMNS(AT159:AT159)),\"\")","v":""},null,null,"",""]
[null,null,null,null,null,null,null,null,null,null,null,null,null,null,null,null,null,null,null,null,null,null,"N2","Benzinas",5.1000000000000004E-3,null,18,"","",null,{"$f":"IFERROR(INDEX(X$143:X$167,AC160,COLUMNS(AE160:AE160)),\"\")","v":""},null,null,"","",null,null,"N3","Dyzelinas",56275,null,18,"","",null,{"$f":"IFERROR(INDEX(AM$143:AM$161,AR160,COLUMNS(AT160:AT160)),\"\")","v":""},null,null,"",""]
[null,null,null,null,null,null,null,null,null,null,null,null,null,null,null,null,null,null,null,null,null,null,"N2","Suskystintos naftos dujos",7.9000000000000008E-3,null,19,"","",null,{"$f":"IFERROR(INDEX(X$143:X$167,AC161,COLUMNS(AE161:AE161)),\"\")","v":""},null,null,"","",null,null,"N3","-",null,null,19,"","",null,{"$f":"IFERROR(INDEX(AM$143:AM$161,AR161,COLUMNS(AT161:AT161)),\"\")","v":""},null,null,"",""]
[null,null,null,null,null,null,null,null,null,null,null,null,null,null,null,null,null,null,null,null,null,null,"N2","Dyzelinas",9.7999999999999997E-3,null,20,"","",null,{"$f":"IFERROR(INDEX(X$143:X$167,AC162,COLUMNS(AE162:AE162)),\"\")","v":""},null,null,"",""]
[null,null,null,null,null,null,null,null,null,null,null,null,null,null,null,null,null,null,null,null,null,null,null,null,null,null,null,"","",null,{"$f":"IFERROR(INDEX(X$143:X$167,AC163,COLUMNS(AE163:AE163)),\"\")","v":""},null,null,"",""]
[null,null,null,null,null,null,null,null,null,null,null,null,null,null,null,null,null,null,null,null,null,null,null,null,null,null,22,"","",null,{"$f":"IFERROR(INDEX(X$143:X$167,AC164,COLUMNS(AE164:AE164)),\"\")","v":""},null,null,"",""]
[null,null,null,null,null,null,null,null,null,null,null,null,null,null,null,null,null,null,null,null,null,null,"N3","Dyzelinas",1.78E-2,null,23,"","",null,{"$f":"IFERROR(INDEX(X$143:X$167,AC165,COLUMNS(AE165:AE165)),\"\")","v":""},null,null,"",""]
[null,null,null,null,null,null,null,null,null,null,null,null,null,null,null,null,null,null,null,null,null,null,null,null,null,null,null,"","",null,{"$f":"IFERROR(INDEX(X$143:X$167,AC166,COLUMNS(AE166:AE166)),\"\")","v":""},null,null,"",""]
[null,null,null,null,null,null,null,null,null,null,null,null,null,null,null,null,null,null,null,null,null,null,null,null,null,null,25,"","",null,{"$f":"IFERROR(INDEX(X$143:X$167,AC167,COLUMNS(AE167:AE167)),\"\")","v":""},null,null,"",""]
[]
[null,null,null,null,null,null,null,null,null,null,null,null,null,null,null,null,null,null,null,null,2029,"Duomenys \"helper\" stulpeliams",null,null,"Helper stulpeliai",null,null,null,null,"Degalų rušies dropdown'ui. Pagal H3 stulpelį suranda kokios kuro rūšis aktualios TP klasei",null,null,null,null,null,null,"Duomenys \"helper\" stulpeliams",null,null,"Helper stulpeliai",null,null,null,null,"Degalų rušies dropdown'ui. Pagal H3 stulpelį suranda kokios kuro rūšis aktualios TP klasei"]
[null,null,null,null,null,null,null,null,null,null,null,null,null,null,null,null,null,null,null,null,null,"Priemonės tipas","Kuro tipas","kt CO2 eq. per metus",null,"H1","H2","H3",null,"Dropdown 2",null,null,"H2 for old vehicle CO2 eq. value","H3 for CO2 eq. value",null,null,"Priemonės tipas","Kuro tipas","CO2 g/km",null,"H1","H2","H3",null,"Dropdown 2",null,null,"H2 for old vehicle CO2 eq. value","H3 for CO2 eq. value"]
[null,null,null,null,null,null,null,null,null,null,null,null,null,null,null,null,null,null,null,null,null,null,"M1","Benzinas",1.5E-3,null,1,{"$f":"IF(W171=O$9,AA171,\"\")","v":1},{"$f":"IFERROR(SMALL(AB$171:AB$195,AA171),\"\")","v":1},null,{"$f":"IFERROR(INDEX(X$171:X$195,AC171,COLUMNS(AE171:AE171)),\"\")","v":"Benzinas"},null,null,{"$f":"IF(AND(O$9=W171,X171=O$12),AA171,\"\")","v":""},{"$f":"IFERROR(SMALL(AH$171:AH$195,AA171),\"\")","v":2},null,null,"M1","Benzinas",9320,null,1,{"$f":"IF(AL171=O$9,AP171,\"\")","v":1},{"$f":"IFERROR(SMALL(AQ$171:AQ$195,AP171),\"\")","v":1},null,{"$f":"IFERROR(INDEX(AM$171:AM$189,AR171,COLUMNS(AT171:AT171)),\"\")","v":"Benzinas"},null,null,{"$f":"IF(AND(O$9=AL171,AM171=O$12),AP171,\"\")","v":""},{"$f":"IFERROR(SMALL(AW$171:AW$189,AP171),\"\")","v":2}]
[null,null,null,null,null,null,null,null,null,null,null,null,null,null,null,null,null,null,null,null,null,null,"M1","Suskystintos naftos dujos",2.7000000000000001E-3,null,2,2,2,null,{"$f":"IFERROR(INDEX(X$171:X$195,AC172,COLUMNS(AE172:AE172)),\"\")","v":"Suskystintos naftos dujos"},null,null,2,"",null,null,"M1","Suskystintos naftos dujos",12310,null,2,2,2,null,{"$f":"IFERROR(INDEX(AM$171:AM$189,AR172,COLUMNS(AT172:AT172)),\"\")","v":"Suskystintos naftos dujos"},null,null,2,""]
[null,null,null,null,null,null,null,null,null,null,null,null,null,null,null,null,null,null,null,null,null,null,"M1","Elektra",2.8999999999999998E-3,null,3,3,3,null,{"$f":"IFERROR(INDEX(X$171:X$195,AC173,COLUMNS(AE173:AE173)),\"\")","v":"Elektra"},null,null,"","",null,null,"M1","Elektra",27715,null,3,3,3,null,{"$f":"IFERROR(INDEX(AM$171:AM$189,AR173,COLUMNS(AT173:AT173)),\"\")","v":"Elektra"},null,null,"",""]
[null,null,null,null,null,null,null,null,null,null,null,null,null,null,null,null,null,null,null,null,null,null,"M1","Dyzelinas",1.6000000000000001E-3,null,4,4,4,null,{"$f":"IFERROR(INDEX(X$171:X$195,AC174,COLUMNS(AE174:AE174)),\"\")","v":"Dyzelinas"},null,null,"","",null,null,"M1","Dyzelinas",14415,null,4,4,4,null,{"$f":"IFERROR(INDEX(AM$171:AM$189,AR174,COLUMNS(AT174:AT174)),\"\")","v":"Dyzelinas"},null,null,"",""]
[null,null,null,null,null,null,null,null,null,null,null,null,null,null,null,null,null,null,null,null,null,null,null,null,null,null,null,"","",null,{"$f":"IFERROR(INDEX(X$171:X$195,AC175,COLUMNS(AE175:AE175)),\"\")","v":""},null,null,"","",null,null,"M1","-",null,null,5,5,5,null,{"$f":"IFERROR(INDEX(AM$171:AM$189,AR175,COLUMNS(AT175:AT175)),\"\")","v":"-"},null,null,"",""]
[null,null,null,null,null,null,null,null,null,null,null,null,null,null,null,null,null,null,null,null,null,null,"M1","-",null,null,6,6,"",null,{"$f":"IFERROR(INDEX(X$171:X$195,AC176,COLUMNS(AE176:AE176)),\"\")","v":""},null,null,"","",null,null,"M2","Dyzelinas",31130,null,6,"","",null,{"$f":"IFERROR(INDEX(AM$171:AM$189,AR176,COLUMNS(AT176:AT176)),\"\")","v":""},null,null,"",""]
[null,null,null,null,null,null,null,null,null,null,null,null,null,null,null,null,null,null,null,null,null,null,"M2","Dyzelinas",1.5599999999999999E-2,null,7,"","",null,{"$f":"IFERROR(INDEX(X$171:X$195,AC177,COLUMNS(AE177:AE177)),\"\")","v":""},null,null,"","",null,null,"M2","-",null,null,7,"","",null,{"$f":"IFERROR(INDEX(AM$171:AM$189,AR177,COLUMNS(AT177:AT177)),\"\")","v":""},null,null,"",""]
[null,null,null,null,null,null,null,null,null,null,null,null,null,null,null,null,null,null,null,null,null,null,null,null,null,null,null,"","",null,{"$f":"IFERROR(INDEX(X$171:X$195,AC178,COLUMNS(AE178:AE178)),\"\")","v":""},null,null,"","",null,null,"M3","Dyzelinas",45366,null,8,"","",null,{"$f":"IFERROR(INDEX(AM$171:AM$189,AR178,COLUMNS(AT178:AT178)),\"\")","v":""},null,null,"",""]
[null,null,null,null,null,null,null,null,null,null,null,null,null,null,null,null,null,null,null,null,null,null,null,null,null,null,9,"","",null,{"$f":"IFERROR(INDEX(X$171:X$195,AC179,COLUMNS(AE179:AE179)),\"\")","v":""},null,null,"","",null,null,"M3","-",null,null,9,"","",null,{"$f":"IFERROR(INDEX(AM$171:AM$189,AR179,COLUMNS(AT179:AT179)),\"\")","v":""},null,null,"",""]
[null,null,null,null,null,null,null,null,null,null,null,null,null,null,null,null,null,null,null,null,null,null,"M3","Dyzelinas",8.8499999999999995E-2,null,10,"","",null,{"$f":"IFERROR(INDEX(X$171:X$195,AC180,COLUMNS(AE180:AE180)),\"\")","v":""},null,null,"","",null,null,"N1","Benzinas",12919,null,10,"","",null,{"$f":"IFERROR(INDEX(AM$171:AM$189,AR180,COLUMNS(AT180:AT180)),\"\")","v":""},null,null,"",""]
[null,null,null,null,null,null,null,null,null,null,null,null,null,null,null,null,null,null,null,null,null,null,null,null,null,null,null,"","",null,{"$f":"IFERROR(INDEX(X$171:X$195,AC181,COLUMNS(AE181:AE181)),\"\")","v":""},null,null,"","",null,null,"N1","Suskystintos naftos dujos",12919,null,11,"","",null,{"$f":"IFERROR(INDEX(AM$171:AM$189,AR181,COLUMNS(AT181:AT181)),\"\")","v":""},null,null,"",""]
[null,null,null,null,null,null,null,null,null,null,null,null,null,null,null,null,null,null,null,null,null,null,null,null,null,null,12,"","",null,{"$f":"IFERROR(INDEX(X$171:X$195,AC182,COLUMNS(AE182:AE182)),\"\")","v":""},null,null,"","",null,null,"N1","Dyzelinas",20787,null,12,"","",null,{"$f":"IFERROR(INDEX(AM$171:AM$189,AR182,COLUMNS(AT182:AT182)),\"\")","v":""},null,null,"",""]
[null,null,null,null,null,null,null,null,null,null,null,null,null,null,null,null,null,null,null,null,null,null,"N1","Benzinas",3.3999999999999998E-3,null,13,"","",null,{"$f":"IFERROR(INDEX(X$171:X$195,AC183,COLUMNS(AE183:AE183)),\"\")","v":""},null,null,"","",null,null,"N1","-",null,null,13,"","",null,{"$f":"IFERROR(INDEX(AM$171:AM$189,AR183,COLUMNS(AT183:AT183)),\"\")","v":""},null,null,"",""]
[null,null,null,null,null,null,null,null,null,null,null,null,null,null,null,null,null,null,null,null,null,null,"N1","Suskystintos naftos dujos",4.5999999999999999E-3,null,14,"","",null,{"$f":"IFERROR(INDEX(X$171:X$195,AC184,COLUMNS(AE184:AE184)),\"\")","v":""},null,null,"","",null,null,"N2","Benzinas",4281,null,14,"","",null,{"$f":"IFERROR(INDEX(AM$171:AM$189,AR184,COLUMNS(AT184:AT184)),\"\")","v":""},null,null,"",""]
[null,null,null,null,null,null,null,null,null,null,null,null,null,null,null,null,null,null,null,null,null,null,"N1","Dyzelinas",3.0000000000000001E-3,null,15,"","",null,{"$f":"IFERROR(INDEX(X$171:X$195,AC185,COLUMNS(AE185:AE185)),\"\")","v":""},null,null,"","",null,null,"N2","Suskystintos naftos dujos",17245,null,15,"","",null,{"$f":"IFERROR(INDEX(AM$171:AM$189,AR185,COLUMNS(AT185:AT185)),\"\")","v":""},null,null,"",""]
[null,null,null,null,null,null,null,null,null,null,null,null,null,null,null,null,null,null,null,null,null,null,null,null,null,null,null,"","",null,{"$f":"IFERROR(INDEX(X$171:X$195,AC186,COLUMNS(AE186:AE186)),\"\")","v":""},null,null,"","",null,null,"N2","Dyzelinas",23713,null,16,"","",null,{"$f":"IFERROR(INDEX(AM$171:AM$189,AR186,COLUMNS(AT186:AT186)),\"\")","v":""},null,null,"",""]
[null,null,null,null,null,null,null,null,null,null,null,null,null,null,null,null,null,null,null,null,null,null,null,null,null,null,17,"","",null,{"$f":"IFERROR(INDEX(X$171:X$195,AC187,COLUMNS(AE187:AE187)),\"\")","v":""},null,null,"","",null,null,"N2","-",null,null,17,"","",null,{"$f":"IFERROR(INDEX(AM$171:AM$189,AR187,COLUMNS(AT187:AT187)),\"\")","v":""},null,null,"",""]
[null,null,null,null,null,null,null,null,null,null,null,null,null,null,null,null,null,null,null,null,null,null,"N2","Benzinas",5.1000000000000004E-3,null,18,"","",null,{"$f":"IFERROR(INDEX(X$171:X$195,AC188,COLUMNS(AE188:AE188)),\"\")","v":""},null,null,"","",null,null,"N3","Dyzelinas",56275,null,18,"","",null,{"$f":"IFERROR(INDEX(AM$171:AM$189,AR188,COLUMNS(AT188:AT188)),\"\")","v":""},null,null,"",""]
[null,null,null,null,null,null,null,null,null,null,null,null,null,null,null,null,null,null,null,null,null,null,"N2","Suskystintos naftos dujos",7.9000000000000008E-3,null,19,"","",null,{"$f":"IFERROR(INDEX(X$171:X$195,AC189,COLUMNS(AE189:AE189)),\"\")","v":""},null,null,"","",null,null,"N3","-",null,null,19,"","",null,{"$f":"IFERROR(INDEX(AM$171:AM$189,AR189,COLUMNS(AT189:AT189)),\"\")","v":""},null,null,"",""]
[null,null,null,null,null,null,null,null,null,null,null,null,null,null,null,null,null,null,null,null,null,null,"N2","Dyzelinas",9.7999999999999997E-3,null,20,"","",null,{"$f":"IFERROR(INDEX(X$171:X$195,AC190,COLUMNS(AE190:AE190)),\"\")","v":""},null,null,"",""]
[null,null,null,null,null,null,null,null,null,null,null,null,null,null,null,null,null,null,null,null,null,null,null,null,null,null,null,"","",null,{"$f":"IFERROR(INDEX(X$171:X$195,AC191,COLUMNS(AE191:AE191)),\"\")","v":""},null,null,"",""]
[null,null,null,null,null,null,null,null,null,null,null,null,null,null,null,null,null,null,null,null,null,null,null,null,null,null,22,"","",null,{"$f":"IFERROR(INDEX(X$171:X$195,AC192,COLUMNS(AE192:AE192)),\"\")","v":""},null,null,"",""]
[null,null,null,null,null,null,null,null,null,null,null,null,null,null,null,null,null,null,null,null,null,null,"N3","Dyzelinas",1.6899999999999998E-2,null,23,"","",null,{"$f":"IFERROR(INDEX(X$171:X$195,AC193,COLUMNS(AE193:AE193)),\"\")","v":""},null,null,"",""]
[null,null,null,null,null,null,null,null,null,null,null,null,null,null,null,null,null,null,null,null,null,null,null,null,null,null,null,"","",null,{"$f":"IFERROR(INDEX(X$171:X$195,AC194,COLUMNS(AE194:AE194)),\"\")","v":""},null,null,"",""]
[null,null,null,null,null,null,null,null,null,null,null,null,null,null,null,null,null,null,null,null,null,null,null,null,null,null,25,"","",null,{"$f":"IFERROR(INDEX(X$171:X$195,AC195,COLUMNS(AE195:AE195)),\"\")","v":""},null,null,"",""]
[]
[null,null,null,null,null,null,null,null,null,null,null,null,null,null,null,null,null,null,null,null,2030,"Duomenys \"helper\" stulpeliams",null,null,"Helper stulpeliai",null,null,null,null,"Degalų rušies dropdown'ui. Pagal H3 stulpelį suranda kokios kuro rūšis aktualios TP klasei",null,null,null,null,null,null,"Duomenys \"helper\" stulpeliams",null,null,"Helper stulpeliai",null,null,null,null,"Degalų rušies dropdown'ui. Pagal H3 stulpelį suranda kokios kuro rūšis aktualios TP klasei"]
[null,null,null,null,null,null,null,null,null,null,null,null,null,null,null,null,null,null,null,null,null,"Priemonės tipas","Kuro tipas","kt CO2 eq. per metus",null,"H1","H2","H3",null,"Dropdown 2",null,null,"H2 for old vehicle CO2 eq. value","H3 for CO2 eq. value",null,null,"Priemonės tipas","Kuro tipas","CO2 g/km",null,"H1","H2","H3",null,"Dropdown 2",null,null,"H2 for old vehicle CO2 eq. value","H3 for CO2 eq. value"]
[null,null,null,null,null,null,null,null,null,null,null,null,null,null,null,null,null,null,null,null,null,null,"M1","Benzinas",1.4E-3,null,1,{"$f":"IF(W199=P$9,AA199,\"\")","v":1},{"$f":"IFERROR(SMALL(AB$199:AB$223,AA199),\"\")","v":1},null,{"$f":"IFERROR(INDEX(X$199:X$223,AC199,COLUMNS(AE199:AE199)),\"\")","v":"Benzinas"},null,null,{"$f":"IF(AND(P$9=W199,X199=P$12),AA199,\"\")","v":""},{"$f":"IFERROR(SMALL(AH$199:AH$223,AA199),\"\")","v":2},null,null,"M1","Benzinas",9320,null,1,{"$f":"IF(AL199=P$9,AP199,\"\")","v":1},{"$f":"IFERROR(SMALL(AQ$199:AQ$217,AP199),\"\")","v":1},null,{"$f":"IFERROR(INDEX(AM$199:AM$217,AR199,COLUMNS(AT199:AT199)),\"\")","v":"Benzinas"},null,null,{"$f":"IF(AND(P$9=AL199,AM199=P$12),AP199,\"\")","v":""},{"$f":"IFERROR(SMALL(AW$199:AW$217,AP199),\"\")","v":2}]
[null,null,null,null,null,null,null,null,null,null,null,null,null,null,null,null,null,null,null,null,null,null,"M1","Suskystintos naftos dujos",2.8E-3,null,2,2,2,null,{"$f":"IFERROR(INDEX(X$199:X$223,AC200,COLUMNS(AE200:AE200)),\"\")","v":"Suskystintos naftos dujos"},null,null,2,"",null,null,"M1","Suskystintos naftos dujos",12310,null,2,2,2,null,{"$f":"IFERROR(INDEX(AM$199:AM$217,AR200,COLUMNS(AT200:AT200)),\"\")","v":"Suskystintos naftos dujos"},null,null,2,""]
[null,null,null,null,null,null,null,null,null,null,null,null,null,null,null,null,null,null,null,null,null,null,"M1","Elektra",2.8999999999999998E-3,null,3,3,3,null,{"$f":"IFERROR(INDEX(X$199:X$223,AC201,COLUMNS(AE201:AE201)),\"\")","v":"Elektra"},null,null,"","",null,null,"M1","Elektra",27715,null,3,3,3,null,{"$f":"IFERROR(INDEX(AM$199:AM$217,AR201,COLUMNS(AT201:AT201)),\"\")","v":"Elektra"},null,null,"",""]
[null,null,null,null,null,null,null,null,null,null,null,null,null,null,null,null,null,null,null,null,null,null,"M1","Dyzelinas",1.5E-3,null,4,4,4,null,{"$f":"IFERROR(INDEX(X$199:X$223,AC202,COLUMNS(AE202:AE202)),\"\")","v":"Dyzelinas"},null,null,"","",null,null,"M1","Dyzelinas",14415,null,4,4,4,null,{"$f":"IFERROR(INDEX(AM$199:AM$217,AR202,COLUMNS(AT202:AT202)),\"\")","v":"Dyzelinas"},null,null,"",""]
[null,null,null,null,null,null,null,null,null,null,null,null,null,null,null,null,null,null,null,null,null,null,null,null,null,null,null,"","",null,{"$f":"IFERROR(INDEX(X$199:X$223,AC203,COLUMNS(AE203:AE203)),\"\")","v":""},null,null,"","",null,null,"M1","-",null,null,5,5,5,null,{"$f":"IFERROR(INDEX(AM$199:AM$217,AR203,COLUMNS(AT203:AT203)),\"\")","v":"-"},null,null,"",""]
[null,null,null,null,null,null,null,null,null,null,null,null,null,null,null,null,null,null,null,null,null,null,"M1","-",null,null,6,6,"",null,{"$f":"IFERROR(INDEX(X$199:X$223,AC204,COLUMNS(AE204:AE204)),\"\")","v":""},null,null,"","",null,null,"M2","Dyzelinas",31130,null,6,"","",null,{"$f":"IFERROR(INDEX(AM$199:AM$217,AR204,COLUMNS(AT204:AT204)),\"\")","v":""},null,null,"",""]
[null,null,null,null,null,null,null,null,null,null,null,null,null,null,null,null,null,null,null,null,null,null,"M2","Dyzelinas",1.5599999999999999E-2,null,7,"","",null,{"$f":"IFERROR(INDEX(X$199:X$223,AC205,COLUMNS(AE205:AE205)),\"\")","v":""},null,null,"","",null,null,"M2","-",null,null,7,"","",null,{"$f":"IFERROR(INDEX(AM$199:AM$217,AR205,COLUMNS(AT205:AT205)),\"\")","v":""},null,null,"",""]
[null,null,null,null,null,null,null,null,null,null,null,null,null,null,null,null,null,null,null,null,null,null,null,null,null,null,null,"","",null,{"$f":"IFERROR(INDEX(X$199:X$223,AC206,COLUMNS(AE206:AE206)),\"\")","v":""},null,null,"","",null,null,"M3","Dyzelinas",45366,null,8,"","",null,{"$f":"IFERROR(INDEX(AM$199:AM$217,AR206,COLUMNS(AT206:AT206)),\"\")","v":""},null,null,"",""]
[null,null,null,null,null,null,null,null,null,null,null,null,null,null,null,null,null,null,null,null,null,null,null,null,null,null,9,"","",null,{"$f":"IFERROR(INDEX(X$199:X$223,AC207,COLUMNS(AE207:AE207)),\"\")","v":""},null,null,"","",null,null,"M3","-",null,null,9,"","",null,{"$f":"IFERROR(INDEX(AM$199:AM$217,AR207,COLUMNS(AT207:AT207)),\"\")","v":""},null,null,"",""]
[null,null,null,null,null,null,null,null,null,null,null,null,null,null,null,null,null,null,null,null,null,null,"M3","Dyzelinas",8.8499999999999995E-2,null,10,"","",null,{"$f":"IFERROR(INDEX(X$199:X$223,AC208,COLUMNS(AE208:AE208)),\"\")","v":""},null,null,"","",null,null,"N1","Benzinas",12919,null,10,"","",null,{"$f":"IFERROR(INDEX(AM$199:AM$217,AR208,COLUMNS(AT208:AT208)),\"\")","v":""},null,null,"",""]
[null,null,null,null,null,null,null,null,null,null,null,null,null,null,null,null,null,null,null,null,null,null,null,null,null,null,null,"","",null,{"$f":"IFERROR(INDEX(X$199:X$223,AC209,COLUMNS(AE209:AE209)),\"\")","v":""},null,null,"","",null,null,"N1","Suskystintos naftos dujos",12919,null,11,"","",null,{"$f":"IFERROR(INDEX(AM$199:AM$217,AR209,COLUMNS(AT209:AT209)),\"\")","v":""},null,null,"",""]
[null,null,null,null,null,null,null,null,null,null,null,null,null,null,null,null,null,null,null,null,null,null,"M3",null,null,null,12,"","",null,{"$f":"IFERROR(INDEX(X$199:X$223,AC210,COLUMNS(AE210:AE210)),\"\")","v":""},null,null,"","",null,null,"N1","Dyzelinas",20787,null,12,"","",null,{"$f":"IFERROR(INDEX(AM$199:AM$217,AR210,COLUMNS(AT210:AT210)),\"\")","v":""},null,null,"",""]
[null,null,null,null,null,null,null,null,null,null,null,null,null,null,null,null,null,null,null,null,null,null,"N1","Benzinas",3.3999999999999998E-3,null,13,"","",null,{"$f":"IFERROR(INDEX(X$199:X$223,AC211,COLUMNS(AE211:AE211)),\"\")","v":""},null,null,"","",null,null,"N1","-",null,null,13,"","",null,{"$f":"IFERROR(INDEX(AM$199:AM$217,AR211,COLUMNS(AT211:AT211)),\"\")","v":""},null,null,"",""]
[null,null,null,null,null,null,null,null,null,null,null,null,null,null,null,null,null,null,null,null,null,null,"N1","Suskystintos naftos dujos",4.5999999999999999E-3,null,14,"","",null,{"$f":"IFERROR(INDEX(X$199:X$223,AC212,COLUMNS(AE212:AE212)),\"\")","v":""},null,null,"","",null,null,"N2","Benzinas",4281,null,14,"","",null,{"$f":"IFERROR(INDEX(AM$199:AM$217,AR212,COLUMNS(AT212:AT212)),\"\")","v":""},null,null,"",""]
[null,null,null,null,null,null,null,null,null,null,null,null,null,null,null,null,null,null,null,null,null,null,"N1","Dyzelinas",2.8999999999999998E-3,null,15,"","",null,{"$f":"IFERROR(INDEX(X$199:X$223,AC213,COLUMNS(AE213:AE213)),\"\")","v":""},null,null,"","",null,null,"N2","Suskystintos naftos dujos",17245,null,15,"","",null,{"$f":"IFERROR(INDEX(AM$199:AM$217,AR213,COLUMNS(AT213:AT213)),\"\")","v":""},null,null,"",""]
[null,null,null,null,null,null,null,null,null,null,null,null,null,null,null,null,null,null,null,null,null,null,null,null,null,null,null,"","",null,{"$f":"IFERROR(INDEX(X$199:X$223,AC214,COLUMNS(AE214:AE214)),\"\")","v":""},null,null,"","",null,null,"N2","Dyzelinas",23713,null,16,"","",null,{"$f":"IFERROR(INDEX(AM$199:AM$217,AR214,COLUMNS(AT214:AT214)),\"\")","v":""},null,null,"",""]
[null,null,null,null,null,null,null,null,null,null,null,null,null,null,null,null,null,null,null,null,null,null,null,null,null,null,17,"","",null,{"$f":"IFERROR(INDEX(X$199:X$223,AC215,COLUMNS(AE215:AE215)),\"\")","v":""},null,null,"","",null,null,"N2","-",null,null,17,"","",null,{"$f":"IFERROR(INDEX(AM$199:AM$217,AR215,COLUMNS(AT215:AT215)),\"\")","v":""},null,null,"",""]
[null,null,null,null,null,null,null,null,null,null,null,null,null,null,null,null,null,null,null,null,null,null,"N2","Benzinas",5.1000000000000004E-3,null,18,"","",null,{"$f":"IFERROR(INDEX(X$199:X$223,AC216,COLUMNS(AE216:AE216)),\"\")","v":""},null,null,"","",null,null,"N3","Dyzelinas",56275,null,18,"","",null,{"$f":"IFERROR(INDEX(AM$199:AM$217,AR216,COLUMNS(AT216:AT216)),\"\")","v":""},null,null,"",""]
[null,null,null,null,null,null,null,null,null,null,null,null,null,null,null,null,null,null,null,null,null,null,"N2","Suskystintos naftos dujos",7.9000000000000008E-3,null,19,"","",null,{"$f":"IFERROR(INDEX(X$199:X$223,AC217,COLUMNS(AE217:AE217)),\"\")","v":""},null,null,"","",null,null,"N3","-",null,null,19,"","",null,{"$f":"IFERROR(INDEX(AM$199:AM$217,AR217,COLUMNS(AT217:AT217)),\"\")","v":""},null,null,"",""]
[null,null,null,null,null,null,null,null,null,null,null,null,null,null,null,null,null,null,null,null,null,null,"N2","Dyzelinas",9.7999999999999997E-3,null,20,"","",null,{"$f":"IFERROR(INDEX(X$199:X$223,AC218,COLUMNS(AE218:AE218)),\"\")","v":""},null,null,"",""]
[null,null,null,null,null,null,null,null,null,null,null,null,null,null,null,null,null,null,null,null,null,null,null,null,null,null,null,"","",null,{"$f":"IFERROR(INDEX(X$199:X$223,AC219,COLUMNS(AE219:AE219)),\"\")","v":""},null,null,"",""]
[null,null,null,null,null,null,null,null,null,null,null,null,null,null,null,null,null,null,null,null,null,null,null,null,null,null,22,"","",null,{"$f":"IFERROR(INDEX(X$199:X$223,AC220,COLUMNS(AE220:AE220)),\"\")","v":""},null,null,"",""]
[null,null,null,null,null,null,null,null,null,null,null,null,null,null,null,null,null,null,null,null,null,null,"N3","Dyzelinas",1.5699999999999999E-2,null,23,"","",null,{"$f":"IFERROR(INDEX(X$199:X$223,AC221,COLUMNS(AE221:AE221)),\"\")","v":""},null,null,"",""]
[null,null,null,null,null,null,null,null,null,null,null,null,null,null,null,null,null,null,null,null,null,null,null,null,null,null,null,"","",null,{"$f":"IFERROR(INDEX(X$199:X$223,AC222,COLUMNS(AE222:AE222)),\"\")","v":""},null,null,"",""]
[null,null,null,null,null,null,null,null,null,null,null,null,null,null,null,null,null,null,null,null,null,null,null,null,null,null,25,"","",null,{"$f":"IFERROR(INDEX(X$199:X$223,AC223,COLUMNS(AE223:AE223)),\"\")","v":""},null,null,"",""]

{"sheet":"ATNAUJINIMAS","index":3,"n_rows":10,"n_cols":8,"rows_kept":10,"cut":false,"hidden":false,"merged":[[0,16,4,20]]}
[]
[null,null,null,null,"SKAIČIUOKLĖS ATNAUJINIMO ISTORIJA"]
[null,null,null,null,"Skaičiuoklės versijos ID*","Atnaujinimo data","Administratorius","Pastabos"]
[null,null,null,null," v 1.0.","2024.03.01","AAA Aplinkos būklės analitikos centras","Viešinimas"]
[null,null,null,null,null,"2025.12.19","AAA Aplinkos būklės analitikos centras","Versijos viešinimas"]
[]
[]
[]
[]
[null,null,null,null,null,"* - nuolat atnaujinama"]